{"text_format":"1","workbook":"xlsx","n_sheets":3,"sheets":["SurfaceWaterChannel","Lookups","WebLookups"],"not_rendered":{"charts":0,"images":0,"macros":1,"external_links":1,"defined_names":34,"comments":0,"pivot_tables":0},"unopened":[],"bounds":{"document_bytes":16777216,"sheet_cells":100000,"rows_first":2000,"rows_last":500,"rows_between":2000,"halvings":0,"cell_chars":16384,"cell_head_chars":4096},"cells_cut":0,"cells_raw":0,"read":"whole","date_system":"1900"}

{"sheet":"SurfaceWaterChannel","index":0,"n_rows":48,"n_cols":42,"rows_kept":48,"cut":false,"hidden":false,"merged":[]}
["15f221f1-c15e-4d8e-a679-81fade5c4405_road_id","ba4adf1f-d64b-4d2c-a600-a59acebf3405_road_id","sh-rs-d","15f221f1-c15e-4d8e-a679-81fade5c4404_start_m","ba4adf1f-d64b-4d2c-a600-a59acebf3404_end_m","ce09cfcb-6c80-4fd5-abad-8feafc65b4bc_swc_type_desc","ce09cfcb-6c80-4fd5-abad-8feafc65b4bc_swc_type","efc6af7e-bddd-427e-b51d-ffce177b6d97_length_adjust_m","4c20703c-39c0-484a-b829-adcfeb8dce19_len_adjust_rsn_desc","4c20703c-39c0-484a-b829-adcfeb8dce19_len_adjust_rsn","e9927ce2-efd5-40a5-87ef-1d1076639558_length_m","0926052e-bf3e-4fb4-97d7-e704ef522c6a_side_desc","0926052e-bf3e-4fb4-97d7-e704ef522c6a_side","3f2c72ea-e882-4f20-a1df-441ac3830a91_offset","658d34f3-e49d-42a4-a3d7-0d678838b067_constructed","62cf6271-0b41-4f7d-9c35-3ff5373d369c_asset_owner_desc","62cf6271-0b41-4f7d-9c35-3ff5373d369c_asset_owner","ed5143b7-8fae-4700-b7cf-e30b166f6cf4_risk_likelihood_desc","ed5143b7-8fae-4700-b7cf-e30b166f6cf4_risk_likelihood","972559f3-9da8-4548-a083-590671868990_risk_consequence_desc","972559f3-9da8-4548-a083-590671868990_risk_consequence","e3fcdea3-d02c-40e8-b875-68d2964c76b4_risk_desc","e3fcdea3-d02c-40e8-b875-68d2964c76b4_risk","2b668aa7-d418-405d-80ae-60063d77b6a3_rul_reset_desc","2b668aa7-d418-405d-80ae-60063d77b6a3_rul_reset","0dbd0b61-476a-4159-9e0c-f8d7a7b4f89b_use_default_rc_desc","0dbd0b61-476a-4159-9e0c-f8d7a7b4f89b_use_default_rc",null,null,"a8010051-bb2f-40c7-9e62-80ff7c505b7f_condition_desc","a8010051-bb2f-40c7-9e62-80ff7c505b7f_condition","ef3149bc-72d8-4ce2-b7c7-db670b04a4d2_condition_date","3eec2b1b-5f6a-4cae-9e04-843f69b014a6_collect_name_desc","3eec2b1b-5f6a-4cae-9e04-843f69b014a6_collect_name","3f23c3d5-841b-4877-adc3-833388ec3045_sw_channel_id","f5af7bbc-0ce9-4f10-bfad-d23bb88d9de1_notes","f85d978b-f82b-4d0a-9cfc-c9e57fb83963_not_ramm_field_in_replace_reason_desc","f85d978b-f82b-4d0a-9cfc-c9e57fb83963_not_ramm_field_in_replace_reason","27a4eb76-dbf8-4bbb-9419-f86116c61d61_not_ramm_field_prior_id","140e90b3-e4df-4b0f-9f0d-8c26309f93a5_not_ramm_field_replace_date","e42a9b7a-3976-4e5b-af90-6194669e43aa_not_ramm_field_rep_replace_reason_desc","e42a9b7a-3976-4e5b-af90-6194669e43aa_not_ramm_field_rep_replace_reason"]
["road_id","road_id","sh-rs-d","start_m","end_m","swc_type_desc","swc_type","length_adjust_m","len_adjust_rsn_desc","len_adjust_rsn","length_m","side_desc","side","offset","constructed","asset_owner_desc","asset_owner","risk_likelihood_desc","risk_likelihood","risk_consequence_desc","risk_consequence","risk_desc","risk","rul_reset_desc","rul_reset","use_default_rc_desc","use_default_rc",null,null,"condition_desc","condition","condition_date","collect_name_desc","collect_name","sw_channel_id","notes","not_ramm_field_in_replace_reason_desc","not_ramm_field_in_replace_reason","not_ramm_field_prior_id","not_ramm_field_replace_date","not_ramm_field_rep_replace_reason_desc","not_ramm_field_rep_replace_reason"]
["Start Road Id","End Road Id","SH-RS-D  (e.g. 016-0000-B) letter must be uppercase and include leading 0","RP Start (m)","RP End (m)","Type Description","Type","Extra Length (m) - must set to 0 if no extra length","Extra Length Reason Description","Extra Length Reason","Length (m)","Side Description","Side","Offset","Date Constructed (dd/mm/yyyy) Must include leading 0","Asset Owner Description","Asset Owner","Risk Likelihood Description","Risk Likelihood","Risk Consequence Description","Risk Consequence","Risk Description","Risk","RUL Reset Description","RUL Reset","Use Default RC Description","Use Default RC","Work origin","Work category","Condition Description","Condition","Condition date (dd/mm/yyyy) Must include leading 0","Organisation Description","Organisation","Surface water channel ID","Comments (if required)","Install Reason Description","Install Reason","Prior Id","Existing Asset - Replace Date (dd/mm/yyyy) Must include leading 0","Existing Asset - Replace Reason Description","Existing Asset - Replace Reason"]
[{"$f":"_xlfn.FILTERXML(_xlfn.WEBSERVICE(\"https://nds-beta.mobileroad.org/xy_sh?rp=\"&C4&\"/\"&D4&\"&xml=true\"),\"/lrms/id_road\")","v":{"$error":"#VALUE!"}},{"$f":"_xlfn.FILTERXML(_xlfn.WEBSERVICE(\"https://nds-beta.mobileroad.org/xy_sh?rp=\"&C4&\"/\"&E4&\"&xml=true\"),\"/lrms/id_road\")","v":{"$error":"#VALUE!"}},null,null,null,null,{"$f":"IF(F4=\"\",\"\",VLOOKUP(F4,type[],2,FALSE))","v":""},null,null,{"$f":"IF(I4=\"\",\"\",VLOOKUP(I4,extra_length_reason[],2,FALSE))","v":""},null,null,{"$f":"IF(L4=\"\",\"\",VLOOKUP(L4,side[],2,FALSE))","v":""},null,null,null,{"$f":"IF(P4=\"\",\"\",VLOOKUP(P4,asset_owner[],2,FALSE))","v":""},null,{"$f":"IF(R4=\"\",\"\",VLOOKUP(R4,likelihood[],2,FALSE))","v":""},null,{"$f":"IF(T4=\"\",\"\",VLOOKUP(T4,consequence[],2,FALSE))","v":""},null,{"$f":"IF(V4=\"\",\"\",VLOOKUP(V4,risk[],2,FALSE))","v":""},null,{"$f":"IF(X4=\"\",\"\",VLOOKUP(X4,rul_reset[],2,FALSE))","v":""},null,{"$f":"IF(Z4=\"\",\"\",VLOOKUP(Z4,use_default[],2,FALSE))","v":""},null,null,null,{"$f":"IF(AD4=\"\",\"\",VLOOKUP(AD4,condition[],2,FALSE))","v":""},null,null,{"$f":"IF(AG4=\"\",\"\",VLOOKUP(AG4,organisation[],2,FALSE))","v":""},null,null,null,{"$f":"IF(AK4=\"\",\"\",VLOOKUP(AK4,install_reason[],2,FALSE))","v":""},null,null,null,{"$f":"IF(AO4=\"\",\"\",VLOOKUP(AO4,replace_reason[],2,FALSE))","v":""}]
[{"$f":"_xlfn.FILTERXML(_xlfn.WEBSERVICE(\"https://nds-beta.mobileroad.org/xy_sh?rp=\"&C5&\"/\"&D5&\"&xml=true\"),\"/lrms/id_road\")","v":{"$error":"#VALUE!"}},{"$f":"_xlfn.FILTERXML(_xlfn.WEBSERVICE(\"https://nds-beta.mobileroad.org/xy_sh?rp=\"&C5&\"/\"&E5&\"&xml=true\"),\"/lrms/id_road\")","v":{"$error":"#VALUE!"}},null,null,null,null,{"$f":"IF(F5=\"\",\"\",VLOOKUP(F5,type[],2,FALSE))","v":""},null,null,{"$f":"IF(I5=\"\",\"\",VLOOKUP(I5,extra_length_reason[],2,FALSE))","v":""},null,null,{"$f":"IF(L5=\"\",\"\",VLOOKUP(L5,side[],2,FALSE))","v":""},null,null,null,{"$f":"IF(P5=\"\",\"\",VLOOKUP(P5,asset_owner[],2,FALSE))","v":""},null,{"$f":"IF(R5=\"\",\"\",VLOOKUP(R5,likelihood[],2,FALSE))","v":""},null,{"$f":"IF(T5=\"\",\"\",VLOOKUP(T5,consequence[],2,FALSE))","v":""},null,{"$f":"IF(V5=\"\",\"\",VLOOKUP(V5,risk[],2,FALSE))","v":""},null,{"$f":"IF(X5=\"\",\"\",VLOOKUP(X5,rul_reset[],2,FALSE))","v":""},null,{"$f":"IF(Z5=\"\",\"\",VLOOKUP(Z5,use_default[],2,FALSE))","v":""},null,null,null,{"$f":"IF(AD5=\"\",\"\",VLOOKUP(AD5,condition[],2,FALSE))","v":""},null,null,{"$f":"IF(AG5=\"\",\"\",VLOOKUP(AG5,organisation[],2,FALSE))","v":""},null,null,null,{"$f":"IF(AK5=\"\",\"\",VLOOKUP(AK5,install_reason[],2,FALSE))","v":""},null,null,null,{"$f":"IF(AO5=\"\",\"\",VLOOKUP(AO5,replace_reason[],2,FALSE))","v":""}]
[{"$error":"#VALUE!"},{"$f":"_xlfn.FILTERXML(_xlfn.WEBSERVICE(\"https://nds-beta.mobileroad.org/xy_sh?rp=\"&C6&\"/\"&E6&\"&xml=true\"),\"/lrms/id_road\")","v":{"$error":"#VALUE!"}},null,null,null,null,{"$f":"IF(F6=\"\",\"\",VLOOKUP(F6,type[],2,FALSE))","v":""},null,null,{"$f":"IF(I6=\"\",\"\",VLOOKUP(I6,extra_length_reason[],2,FALSE))","v":""},null,null,{"$f":"IF(L6=\"\",\"\",VLOOKUP(L6,side[],2,FALSE))","v":""},null,null,null,{"$f":"IF(P6=\"\",\"\",VLOOKUP(P6,asset_owner[],2,FALSE))","v":""},null,{"$f":"IF(R6=\"\",\"\",VLOOKUP(R6,likelihood[],2,FALSE))","v":""},null,{"$f":"IF(T6=\"\",\"\",VLOOKUP(T6,consequence[],2,FALSE))","v":""},null,{"$f":"IF(V6=\"\",\"\",VLOOKUP(V6,risk[],2,FALSE))","v":""},null,{"$f":"IF(X6=\"\",\"\",VLOOKUP(X6,rul_reset[],2,FALSE))","v":""},null,{"$f":"IF(Z6=\"\",\"\",VLOOKUP(Z6,use_default[],2,FALSE))","v":""},null,null,null,{"$f":"IF(AD6=\"\",\"\",VLOOKUP(AD6,condition[],2,FALSE))","v":""},null,null,{"$f":"IF(AG6=\"\",\"\",VLOOKUP(AG6,organisation[],2,FALSE))","v":""},null,null,null,{"$f":"IF(AK6=\"\",\"\",VLOOKUP(AK6,install_reason[],2,FALSE))","v":""},null,null,null,{"$f":"IF(AO6=\"\",\"\",VLOOKUP(AO6,replace_reason[],2,FALSE))","v":""}]
[{"$error":"#VALUE!"},{"$f":"_xlfn.FILTERXML(_xlfn.WEBSERVICE(\"https://nds-beta.mobileroad.org/xy_sh?rp=\"&C7&\"/\"&E7&\"&xml=true\"),\"/lrms/id_road\")","v":{"$error":"#VALUE!"}},null,null,null,null,{"$f":"IF(F7=\"\",\"\",VLOOKUP(F7,type[],2,FALSE))","v":""},null,null,{"$f":"IF(I7=\"\",\"\",VLOOKUP(I7,extra_length_reason[],2,FALSE))","v":""},null,null,{"$f":"IF(L7=\"\",\"\",VLOOKUP(L7,side[],2,FALSE))","v":""},null,null,null,{"$f":"IF(P7=\"\",\"\",VLOOKUP(P7,asset_owner[],2,FALSE))","v":""},null,{"$f":"IF(R7=\"\",\"\",VLOOKUP(R7,likelihood[],2,FALSE))","v":""},null,{"$f":"IF(T7=\"\",\"\",VLOOKUP(T7,consequence[],2,FALSE))","v":""},null,{"$f":"IF(V7=\"\",\"\",VLOOKUP(V7,risk[],2,FALSE))","v":""},null,{"$f":"IF(X7=\"\",\"\",VLOOKUP(X7,rul_reset[],2,FALSE))","v":""},null,{"$f":"IF(Z7=\"\",\"\",VLOOKUP(Z7,use_default[],2,FALSE))","v":""},null,null,null,{"$f":"IF(AD7=\"\",\"\",VLOOKUP(AD7,condition[],2,FALSE))","v":""},null,null,{"$f":"IF(AG7=\"\",\"\",VLOOKUP(AG7,organisation[],2,FALSE))","v":""},null,null,null,{"$f":"IF(AK7=\"\",\"\",VLOOKUP(AK7,install_reason[],2,FALSE))","v":""},null,null,null,{"$f":"IF(AO7=\"\",\"\",VLOOKUP(AO7,replace_reason[],2,FALSE))","v":""}]
[{"$error":"#VALUE!"},{"$error":"#VALUE!"},null,null,null,null,{"$f":"IF(F8=\"\",\"\",VLOOKUP(F8,type[],2,FALSE))","v":""},null,null,{"$f":"IF(I8=\"\",\"\",VLOOKUP(I8,extra_length_reason[],2,FALSE))","v":""},null,null,{"$f":"IF(L8=\"\",\"\",VLOOKUP(L8,side[],2,FALSE))","v":""},null,null,null,{"$f":"IF(P8=\"\",\"\",VLOOKUP(P8,asset_owner[],2,FALSE))","v":""},null,{"$f":"IF(R8=\"\",\"\",VLOOKUP(R8,likelihood[],2,FALSE))","v":""},null,{"$f":"IF(T8=\"\",\"\",VLOOKUP(T8,consequence[],2,FALSE))","v":""},null,{"$f":"IF(V8=\"\",\"\",VLOOKUP(V8,risk[],2,FALSE))","v":""},null,{"$f":"IF(X8=\"\",\"\",VLOOKUP(X8,rul_reset[],2,FALSE))","v":""},null,{"$f":"IF(Z8=\"\",\"\",VLOOKUP(Z8,use_default[],2,FALSE))","v":""},null,null,null,{"$f":"IF(AD8=\"\",\"\",VLOOKUP(AD8,condition[],2,FALSE))","v":""},null,null,{"$f":"IF(AG8=\"\",\"\",VLOOKUP(AG8,organisation[],2,FALSE))","v":""},null,null,null,{"$f":"IF(AK8=\"\",\"\",VLOOKUP(AK8,install_reason[],2,FALSE))","v":""},null,null,null,{"$f":"IF(AO8=\"\",\"\",VLOOKUP(AO8,replace_reason[],2,FALSE))","v":""}]
[{"$error":"#VALUE!"},{"$error":"#VALUE!"},null,null,null,null,{"$f":"IF(F9=\"\",\"\",VLOOKUP(F9,type[],2,FALSE))","v":""},null,null,{"$f":"IF(I9=\"\",\"\",VLOOKUP(I9,extra_length_reason[],2,FALSE))","v":""},null,null,{"$f":"IF(L9=\"\",\"\",VLOOKUP(L9,side[],2,FALSE))","v":""},null,null,null,{"$f":"IF(P9=\"\",\"\",VLOOKUP(P9,asset_owner[],2,FALSE))","v":""},null,{"$f":"IF(R9=\"\",\"\",VLOOKUP(R9,likelihood[],2,FALSE))","v":""},null,{"$f":"IF(T9=\"\",\"\",VLOOKUP(T9,consequence[],2,FALSE))","v":""},null,{"$f":"IF(V9=\"\",\"\",VLOOKUP(V9,risk[],2,FALSE))","v":""},null,{"$f":"IF(X9=\"\",\"\",VLOOKUP(X9,rul_reset[],2,FALSE))","v":""},null,{"$f":"IF(Z9=\"\",\"\",VLOOKUP(Z9,use_default[],2,FALSE))","v":""},null,null,null,{"$f":"IF(AD9=\"\",\"\",VLOOKUP(AD9,condition[],2,FALSE))","v":""},null,null,{"$f":"IF(AG9=\"\",\"\",VLOOKUP(AG9,organisation[],2,FALSE))","v":""},null,null,null,{"$f":"IF(AK9=\"\",\"\",VLOOKUP(AK9,install_reason[],2,FALSE))","v":""},null,null,null,{"$f":"IF(AO9=\"\",\"\",VLOOKUP(AO9,replace_reason[],2,FALSE))","v":""}]
[{"$error":"#VALUE!"},{"$error":"#VALUE!"},null,null,null,null,{"$f":"IF(F10=\"\",\"\",VLOOKUP(F10,type[],2,FALSE))","v":""},null,null,{"$f":"IF(I10=\"\",\"\",VLOOKUP(I10,extra_length_reason[],2,FALSE))","v":""},null,null,{"$f":"IF(L10=\"\",\"\",VLOOKUP(L10,side[],2,FALSE))","v":""},null,null,null,{"$f":"IF(P10=\"\",\"\",VLOOKUP(P10,asset_owner[],2,FALSE))","v":""},null,{"$f":"IF(R10=\"\",\"\",VLOOKUP(R10,likelihood[],2,FALSE))","v":""},null,{"$f":"IF(T10=\"\",\"\",VLOOKUP(T10,consequence[],2,FALSE))","v":""},null,{"$f":"IF(V10=\"\",\"\",VLOOKUP(V10,risk[],2,FALSE))","v":""},null,{"$f":"IF(X10=\"\",\"\",VLOOKUP(X10,rul_reset[],2,FALSE))","v":""},null,{"$f":"IF(Z10=\"\",\"\",VLOOKUP(Z10,use_default[],2,FALSE))","v":""},null,null,null,{"$f":"IF(AD10=\"\",\"\",VLOOKUP(AD10,condition[],2,FALSE))","v":""},null,null,{"$f":"IF(AG10=\"\",\"\",VLOOKUP(AG10,organisation[],2,FALSE))","v":""},null,null,null,{"$f":"IF(AK10=\"\",\"\",VLOOKUP(AK10,install_reason[],2,FALSE))","v":""},null,null,null,{"$f":"IF(AO10=\"\",\"\",VLOOKUP(AO10,replace_reason[],2,FALSE))","v":""}]
[{"$error":"#VALUE!"},{"$f":"_xlfn.FILTERXML(_xlfn.WEBSERVICE(\"https://nds-beta.mobileroad.org/xy_sh?rp=\"&C11&\"/\"&E11&\"&xml=true\"),\"/lrms/id_road\")","v":{"$error":"#VALUE!"}},null,null,null,null,{"$f":"IF(F11=\"\",\"\",VLOOKUP(F11,type[],2,FALSE))","v":""},null,null,{"$f":"IF(I11=\"\",\"\",VLOOKUP(I11,extra_length_reason[],2,FALSE))","v":""},null,null,{"$f":"IF(L11=\"\",\"\",VLOOKUP(L11,side[],2,FALSE))","v":""},null,null,null,{"$f":"IF(P11=\"\",\"\",VLOOKUP(P11,asset_owner[],2,FALSE))","v":""},null,{"$f":"IF(R11=\"\",\"\",VLOOKUP(R11,likelihood[],2,FALSE))","v":""},null,{"$f":"IF(T11=\"\",\"\",VLOOKUP(T11,consequence[],2,FALSE))","v":""},null,{"$f":"IF(V11=\"\",\"\",VLOOKUP(V11,risk[],2,FALSE))","v":""},null,{"$f":"IF(X11=\"\",\"\",VLOOKUP(X11,rul_reset[],2,FALSE))","v":""},null,{"$f":"IF(Z11=\"\",\"\",VLOOKUP(Z11,use_default[],2,FALSE))","v":""},null,null,null,{"$f":"IF(AD11=\"\",\"\",VLOOKUP(AD11,condition[],2,FALSE))","v":""},null,null,{"$f":"IF(AG11=\"\",\"\",VLOOKUP(AG11,organisation[],2,FALSE))","v":""},null,null,null,{"$f":"IF(AK11=\"\",\"\",VLOOKUP(AK11,install_reason[],2,FALSE))","v":""},null,null,null,{"$f":"IF(AO11=\"\",\"\",VLOOKUP(AO11,replace_reason[],2,FALSE))","v":""}]
[{"$error":"#VALUE!"},{"$error":"#VALUE!"},null,null,null,null,{"$f":"IF(F12=\"\",\"\",VLOOKUP(F12,type[],2,FALSE))","v":""},null,null,{"$f":"IF(I12=\"\",\"\",VLOOKUP(I12,extra_length_reason[],2,FALSE))","v":""},null,null,{"$f":"IF(L12=\"\",\"\",VLOOKUP(L12,side[],2,FALSE))","v":""},null,null,null,{"$f":"IF(P12=\"\",\"\",VLOOKUP(P12,asset_owner[],2,FALSE))","v":""},null,{"$f":"IF(R12=\"\",\"\",VLOOKUP(R12,likelihood[],2,FALSE))","v":""},null,{"$f":"IF(T12=\"\",\"\",VLOOKUP(T12,consequence[],2,FALSE))","v":""},null,{"$f":"IF(V12=\"\",\"\",VLOOKUP(V12,risk[],2,FALSE))","v":""},null,{"$f":"IF(X12=\"\",\"\",VLOOKUP(X12,rul_reset[],2,FALSE))","v":""},null,{"$f":"IF(Z12=\"\",\"\",VLOOKUP(Z12,use_default[],2,FALSE))","v":""},null,null,null,{"$f":"IF(AD12=\"\",\"\",VLOOKUP(AD12,condition[],2,FALSE))","v":""},null,null,{"$f":"IF(AG12=\"\",\"\",VLOOKUP(AG12,organisation[],2,FALSE))","v":""},null,null,null,{"$f":"IF(AK12=\"\",\"\",VLOOKUP(AK12,install_reason[],2,FALSE))","v":""},null,null,null,{"$f":"IF(AO12=\"\",\"\",VLOOKUP(AO12,replace_reason[],2,FALSE))","v":""}]
[{"$error":"#VALUE!"},{"$error":"#VALUE!"},null,null,null,null,{"$f":"IF(F13=\"\",\"\",VLOOKUP(F13,type[],2,FALSE))","v":""},null,null,{"$f":"IF(I13=\"\",\"\",VLOOKUP(I13,extra_length_reason[],2,FALSE))","v":""},null,null,{"$f":"IF(L13=\"\",\"\",VLOOKUP(L13,side[],2,FALSE))","v":""},null,null,null,{"$f":"IF(P13=\"\",\"\",VLOOKUP(P13,asset_owner[],2,FALSE))","v":""},null,{"$f":"IF(R13=\"\",\"\",VLOOKUP(R13,likelihood[],2,FALSE))","v":""},null,{"$f":"IF(T13=\"\",\"\",VLOOKUP(T13,consequence[],2,FALSE))","v":""},null,{"$f":"IF(V13=\"\",\"\",VLOOKUP(V13,risk[],2,FALSE))","v":""},null,{"$f":"IF(X13=\"\",\"\",VLOOKUP(X13,rul_reset[],2,FALSE))","v":""},null,{"$f":"IF(Z13=\"\",\"\",VLOOKUP(Z13,use_default[],2,FALSE))","v":""},null,null,null,{"$f":"IF(AD13=\"\",\"\",VLOOKUP(AD13,condition[],2,FALSE))","v":""},null,null,{"$f":"IF(AG13=\"\",\"\",VLOOKUP(AG13,organisation[],2,FALSE))","v":""},null,null,null,{"$f":"IF(AK13=\"\",\"\",VLOOKUP(AK13,install_reason[],2,FALSE))","v":""},null,null,null,{"$f":"IF(AO13=\"\",\"\",VLOOKUP(AO13,replace_reason[],2,FALSE))","v":""}]
[{"$error":"#VALUE!"},{"$error":"#VALUE!"},null,null,null,null,{"$f":"IF(F14=\"\",\"\",VLOOKUP(F14,type[],2,FALSE))","v":""},null,null,{"$f":"IF(I14=\"\",\"\",VLOOKUP(I14,extra_length_reason[],2,FALSE))","v":""},null,null,{"$f":"IF(L14=\"\",\"\",VLOOKUP(L14,side[],2,FALSE))","v":""},null,null,null,{"$f":"IF(P14=\"\",\"\",VLOOKUP(P14,asset_owner[],2,FALSE))","v":""},null,{"$f":"IF(R14=\"\",\"\",VLOOKUP(R14,likelihood[],2,FALSE))","v":""},null,{"$f":"IF(T14=\"\",\"\",VLOOKUP(T14,consequence[],2,FALSE))","v":""},null,{"$f":"IF(V14=\"\",\"\",VLOOKUP(V14,risk[],2,FALSE))","v":""},null,{"$f":"IF(X14=\"\",\"\",VLOOKUP(X14,rul_reset[],2,FALSE))","v":""},null,{"$f":"IF(Z14=\"\",\"\",VLOOKUP(Z14,use_default[],2,FALSE))","v":""},null,null,null,{"$f":"IF(AD14=\"\",\"\",VLOOKUP(AD14,condition[],2,FALSE))","v":""},null,null,{"$f":"IF(AG14=\"\",\"\",VLOOKUP(AG14,organisation[],2,FALSE))","v":""},null,null,null,{"$f":"IF(AK14=\"\",\"\",VLOOKUP(AK14,install_reason[],2,FALSE))","v":""},null,null,null,{"$f":"IF(AO14=\"\",\"\",VLOOKUP(AO14,replace_reason[],2,FALSE))","v":""}]
[{"$error":"#VALUE!"},{"$error":"#VALUE!"},null,null,null,null,{"$f":"IF(F15=\"\",\"\",VLOOKUP(F15,type[],2,FALSE))","v":""},null,null,{"$f":"IF(I15=\"\",\"\",VLOOKUP(I15,extra_length_reason[],2,FALSE))","v":""},null,null,{"$f":"IF(L15=\"\",\"\",VLOOKUP(L15,side[],2,FALSE))","v":""},null,null,null,{"$f":"IF(P15=\"\",\"\",VLOOKUP(P15,asset_owner[],2,FALSE))","v":""},null,{"$f":"IF(R15=\"\",\"\",VLOOKUP(R15,likelihood[],2,FALSE))","v":""},null,{"$f":"IF(T15=\"\",\"\",VLOOKUP(T15,consequence[],2,FALSE))","v":""},null,{"$f":"IF(V15=\"\",\"\",VLOOKUP(V15,risk[],2,FALSE))","v":""},null,{"$f":"IF(X15=\"\",\"\",VLOOKUP(X15,rul_reset[],2,FALSE))","v":""},null,{"$f":"IF(Z15=\"\",\"\",VLOOKUP(Z15,use_default[],2,FALSE))","v":""},null,null,null,{"$f":"IF(AD15=\"\",\"\",VLOOKUP(AD15,condition[],2,FALSE))","v":""},null,null,{"$f":"IF(AG15=\"\",\"\",VLOOKUP(AG15,organisation[],2,FALSE))","v":""},null,null,null,{"$f":"IF(AK15=\"\",\"\",VLOOKUP(AK15,install_reason[],2,FALSE))","v":""},null,null,null,{"$f":"IF(AO15=\"\",\"\",VLOOKUP(AO15,replace_reason[],2,FALSE))","v":""}]
[{"$error":"#VALUE!"},{"$error":"#VALUE!"},null,null,null,null,{"$f":"IF(F16=\"\",\"\",VLOOKUP(F16,type[],2,FALSE))","v":""},null,null,{"$f":"IF(I16=\"\",\"\",VLOOKUP(I16,extra_length_reason[],2,FALSE))","v":""},null,null,{"$f":"IF(L16=\"\",\"\",VLOOKUP(L16,side[],2,FALSE))","v":""},null,null,null,{"$f":"IF(P16=\"\",\"\",VLOOKUP(P16,asset_owner[],2,FALSE))","v":""},null,{"$f":"IF(R16=\"\",\"\",VLOOKUP(R16,likelihood[],2,FALSE))","v":""},null,{"$f":"IF(T16=\"\",\"\",VLOOKUP(T16,consequence[],2,FALSE))","v":""},null,{"$f":"IF(V16=\"\",\"\",VLOOKUP(V16,risk[],2,FALSE))","v":""},null,{"$f":"IF(X16=\"\",\"\",VLOOKUP(X16,rul_reset[],2,FALSE))","v":""},null,{"$f":"IF(Z16=\"\",\"\",VLOOKUP(Z16,use_default[],2,FALSE))","v":""},null,null,null,{"$f":"IF(AD16=\"\",\"\",VLOOKUP(AD16,condition[],2,FALSE))","v":""},null,null,{"$f":"IF(AG16=\"\",\"\",VLOOKUP(AG16,organisation[],2,FALSE))","v":""},null,null,null,{"$f":"IF(AK16=\"\",\"\",VLOOKUP(AK16,install_reason[],2,FALSE))","v":""},null,null,null,{"$f":"IF(AO16=\"\",\"\",VLOOKUP(AO16,replace_reason[],2,FALSE))","v":""}]
[{"$error":"#VALUE!"},{"$error":"#VALUE!"},null,null,null,null,{"$f":"IF(F17=\"\",\"\",VLOOKUP(F17,type[],2,FALSE))","v":""},null,null,{"$f":"IF(I17=\"\",\"\",VLOOKUP(I17,extra_length_reason[],2,FALSE))","v":""},null,null,{"$f":"IF(L17=\"\",\"\",VLOOKUP(L17,side[],2,FALSE))","v":""},null,null,null,{"$f":"IF(P17=\"\",\"\",VLOOKUP(P17,asset_owner[],2,FALSE))","v":""},null,{"$f":"IF(R17=\"\",\"\",VLOOKUP(R17,likelihood[],2,FALSE))","v":""},null,{"$f":"IF(T17=\"\",\"\",VLOOKUP(T17,consequence[],2,FALSE))","v":""},null,{"$f":"IF(V17=\"\",\"\",VLOOKUP(V17,risk[],2,FALSE))","v":""},null,{"$f":"IF(X17=\"\",\"\",VLOOKUP(X17,rul_reset[],2,FALSE))","v":""},null,{"$f":"IF(Z17=\"\",\"\",VLOOKUP(Z17,use_default[],2,FALSE))","v":""},null,null,null,{"$f":"IF(AD17=\"\",\"\",VLOOKUP(AD17,condition[],2,FALSE))","v":""},null,null,{"$f":"IF(AG17=\"\",\"\",VLOOKUP(AG17,organisation[],2,FALSE))","v":""},null,null,null,{"$f":"IF(AK17=\"\",\"\",VLOOKUP(AK17,install_reason[],2,FALSE))","v":""},null,null,null,{"$f":"IF(AO17=\"\",\"\",VLOOKUP(AO17,replace_reason[],2,FALSE))","v":""}]
[{"$error":"#VALUE!"},{"$error":"#VALUE!"},null,null,null,null,{"$f":"IF(F18=\"\",\"\",VLOOKUP(F18,type[],2,FALSE))","v":""},null,null,{"$f":"IF(I18=\"\",\"\",VLOOKUP(I18,extra_length_reason[],2,FALSE))","v":""},null,null,{"$f":"IF(L18=\"\",\"\",VLOOKUP(L18,side[],2,FALSE))","v":""},null,null,null,{"$f":"IF(P18=\"\",\"\",VLOOKUP(P18,asset_owner[],2,FALSE))","v":""},null,{"$f":"IF(R18=\"\",\"\",VLOOKUP(R18,likelihood[],2,FALSE))","v":""},null,{"$f":"IF(T18=\"\",\"\",VLOOKUP(T18,consequence[],2,FALSE))","v":""},null,{"$f":"IF(V18=\"\",\"\",VLOOKUP(V18,risk[],2,FALSE))","v":""},null,{"$f":"IF(X18=\"\",\"\",VLOOKUP(X18,rul_reset[],2,FALSE))","v":""},null,{"$f":"IF(Z18=\"\",\"\",VLOOKUP(Z18,use_default[],2,FALSE))","v":""},null,null,null,{"$f":"IF(AD18=\"\",\"\",VLOOKUP(AD18,condition[],2,FALSE))","v":""},null,null,{"$f":"IF(AG18=\"\",\"\",VLOOKUP(AG18,organisation[],2,FALSE))","v":""},null,null,null,{"$f":"IF(AK18=\"\",\"\",VLOOKUP(AK18,install_reason[],2,FALSE))","v":""},null,null,null,{"$f":"IF(AO18=\"\",\"\",VLOOKUP(AO18,replace_reason[],2,FALSE))","v":""}]
[{"$error":"#VALUE!"},{"$error":"#VALUE!"},null,null,null,null,{"$f":"IF(F19=\"\",\"\",VLOOKUP(F19,type[],2,FALSE))","v":""},null,null,{"$f":"IF(I19=\"\",\"\",VLOOKUP(I19,extra_length_reason[],2,FALSE))","v":""},null,null,{"$f":"IF(L19=\"\",\"\",VLOOKUP(L19,side[],2,FALSE))","v":""},null,null,null,{"$f":"IF(P19=\"\",\"\",VLOOKUP(P19,asset_owner[],2,FALSE))","v":""},null,{"$f":"IF(R19=\"\",\"\",VLOOKUP(R19,likelihood[],2,FALSE))","v":""},null,{"$f":"IF(T19=\"\",\"\",VLOOKUP(T19,consequence[],2,FALSE))","v":""},null,{"$f":"IF(V19=\"\",\"\",VLOOKUP(V19,risk[],2,FALSE))","v":""},null,{"$f":"IF(X19=\"\",\"\",VLOOKUP(X19,rul_reset[],2,FALSE))","v":""},null,{"$f":"IF(Z19=\"\",\"\",VLOOKUP(Z19,use_default[],2,FALSE))","v":""},null,null,null,{"$f":"IF(AD19=\"\",\"\",VLOOKUP(AD19,condition[],2,FALSE))","v":""},null,null,{"$f":"IF(AG19=\"\",\"\",VLOOKUP(AG19,organisation[],2,FALSE))","v":""},null,null,null,{"$f":"IF(AK19=\"\",\"\",VLOOKUP(AK19,install_reason[],2,FALSE))","v":""},null,null,null,{"$f":"IF(AO19=\"\",\"\",VLOOKUP(AO19,replace_reason[],2,FALSE))","v":""}]
[{"$error":"#VALUE!"},{"$error":"#VALUE!"},null,null,null,null,{"$f":"IF(F20=\"\",\"\",VLOOKUP(F20,type[],2,FALSE))","v":""},null,null,{"$f":"IF(I20=\"\",\"\",VLOOKUP(I20,extra_length_reason[],2,FALSE))","v":""},null,null,{"$f":"IF(L20=\"\",\"\",VLOOKUP(L20,side[],2,FALSE))","v":""},null,null,null,{"$f":"IF(P20=\"\",\"\",VLOOKUP(P20,asset_owner[],2,FALSE))","v":""},null,{"$f":"IF(R20=\"\",\"\",VLOOKUP(R20,likelihood[],2,FALSE))","v":""},null,{"$f":"IF(T20=\"\",\"\",VLOOKUP(T20,consequence[],2,FALSE))","v":""},null,{"$f":"IF(V20=\"\",\"\",VLOOKUP(V20,risk[],2,FALSE))","v":""},null,{"$f":"IF(X20=\"\",\"\",VLOOKUP(X20,rul_reset[],2,FALSE))","v":""},null,{"$f":"IF(Z20=\"\",\"\",VLOOKUP(Z20,use_default[],2,FALSE))","v":""},null,null,null,{"$f":"IF(AD20=\"\",\"\",VLOOKUP(AD20,condition[],2,FALSE))","v":""},null,null,{"$f":"IF(AG20=\"\",\"\",VLOOKUP(AG20,organisation[],2,FALSE))","v":""},null,null,null,{"$f":"IF(AK20=\"\",\"\",VLOOKUP(AK20,install_reason[],2,FALSE))","v":""},null,null,null,{"$f":"IF(AO20=\"\",\"\",VLOOKUP(AO20,replace_reason[],2,FALSE))","v":""}]
[{"$error":"#VALUE!"},{"$error":"#VALUE!"},null,null,null,null,{"$f":"IF(F21=\"\",\"\",VLOOKUP(F21,type[],2,FALSE))","v":""},null,null,{"$f":"IF(I21=\"\",\"\",VLOOKUP(I21,extra_length_reason[],2,FALSE))","v":""},null,null,{"$f":"IF(L21=\"\",\"\",VLOOKUP(L21,side[],2,FALSE))","v":""},null,null,null,{"$f":"IF(P21=\"\",\"\",VLOOKUP(P21,asset_owner[],2,FALSE))","v":""},null,{"$f":"IF(R21=\"\",\"\",VLOOKUP(R21,likelihood[],2,FALSE))","v":""},null,{"$f":"IF(T21=\"\",\"\",VLOOKUP(T21,consequence[],2,FALSE))","v":""},null,{"$f":"IF(V21=\"\",\"\",VLOOKUP(V21,risk[],2,FALSE))","v":""},null,{"$f":"IF(X21=\"\",\"\",VLOOKUP(X21,rul_reset[],2,FALSE))","v":""},null,{"$f":"IF(Z21=\"\",\"\",VLOOKUP(Z21,use_default[],2,FALSE))","v":""},null,null,null,{"$f":"IF(AD21=\"\",\"\",VLOOKUP(AD21,condition[],2,FALSE))","v":""},null,null,{"$f":"IF(AG21=\"\",\"\",VLOOKUP(AG21,organisation[],2,FALSE))","v":""},null,null,null,{"$f":"IF(AK21=\"\",\"\",VLOOKUP(AK21,install_reason[],2,FALSE))","v":""},null,null,null,{"$f":"IF(AO21=\"\",\"\",VLOOKUP(AO21,replace_reason[],2,FALSE))","v":""}]
[{"$error":"#VALUE!"},{"$error":"#VALUE!"},null,null,null,null,{"$f":"IF(F22=\"\",\"\",VLOOKUP(F22,type[],2,FALSE))","v":""},null,null,{"$f":"IF(I22=\"\",\"\",VLOOKUP(I22,extra_length_reason[],2,FALSE))","v":""},null,null,{"$f":"IF(L22=\"\",\"\",VLOOKUP(L22,side[],2,FALSE))","v":""},null,null,null,{"$f":"IF(P22=\"\",\"\",VLOOKUP(P22,asset_owner[],2,FALSE))","v":""},null,{"$f":"IF(R22=\"\",\"\",VLOOKUP(R22,likelihood[],2,FALSE))","v":""},null,{"$f":"IF(T22=\"\",\"\",VLOOKUP(T22,consequence[],2,FALSE))","v":""},null,{"$f":"IF(V22=\"\",\"\",VLOOKUP(V22,risk[],2,FALSE))","v":""},null,{"$f":"IF(X22=\"\",\"\",VLOOKUP(X22,rul_reset[],2,FALSE))","v":""},null,{"$f":"IF(Z22=\"\",\"\",VLOOKUP(Z22,use_default[],2,FALSE))","v":""},null,null,null,{"$f":"IF(AD22=\"\",\"\",VLOOKUP(AD22,condition[],2,FALSE))","v":""},null,null,{"$f":"IF(AG22=\"\",\"\",VLOOKUP(AG22,organisation[],2,FALSE))","v":""},null,null,null,{"$f":"IF(AK22=\"\",\"\",VLOOKUP(AK22,install_reason[],2,FALSE))","v":""},null,null,null,{"$f":"IF(AO22=\"\",\"\",VLOOKUP(AO22,replace_reason[],2,FALSE))","v":""}]
[{"$error":"#VALUE!"},{"$error":"#VALUE!"},null,null,null,null,{"$f":"IF(F23=\"\",\"\",VLOOKUP(F23,type[],2,FALSE))","v":""},null,null,{"$f":"IF(I23=\"\",\"\",VLOOKUP(I23,extra_length_reason[],2,FALSE))","v":""},null,null,{"$f":"IF(L23=\"\",\"\",VLOOKUP(L23,side[],2,FALSE))","v":""},null,null,null,{"$f":"IF(P23=\"\",\"\",VLOOKUP(P23,asset_owner[],2,FALSE))","v":""},null,{"$f":"IF(R23=\"\",\"\",VLOOKUP(R23,likelihood[],2,FALSE))","v":""},null,{"$f":"IF(T23=\"\",\"\",VLOOKUP(T23,consequence[],2,FALSE))","v":""},null,{"$f":"IF(V23=\"\",\"\",VLOOKUP(V23,risk[],2,FALSE))","v":""},null,{"$f":"IF(X23=\"\",\"\",VLOOKUP(X23,rul_reset[],2,FALSE))","v":""},null,{"$f":"IF(Z23=\"\",\"\",VLOOKUP(Z23,use_default[],2,FALSE))","v":""},null,null,null,{"$f":"IF(AD23=\"\",\"\",VLOOKUP(AD23,condition[],2,FALSE))","v":""},null,null,{"$f":"IF(AG23=\"\",\"\",VLOOKUP(AG23,organisation[],2,FALSE))","v":""},null,null,null,{"$f":"IF(AK23=\"\",\"\",VLOOKUP(AK23,install_reason[],2,FALSE))","v":""},null,null,null,{"$f":"IF(AO23=\"\",\"\",VLOOKUP(AO23,replace_reason[],2,FALSE))","v":""}]
[{"$error":"#VALUE!"},{"$error":"#VALUE!"},null,null,null,null,{"$f":"IF(F24=\"\",\"\",VLOOKUP(F24,type[],2,FALSE))","v":""},null,null,{"$f":"IF(I24=\"\",\"\",VLOOKUP(I24,extra_length_reason[],2,FALSE))","v":""},null,null,{"$f":"IF(L24=\"\",\"\",VLOOKUP(L24,side[],2,FALSE))","v":""},null,null,null,{"$f":"IF(P24=\"\",\"\",VLOOKUP(P24,asset_owner[],2,FALSE))","v":""},null,{"$f":"IF(R24=\"\",\"\",VLOOKUP(R24,likelihood[],2,FALSE))","v":""},null,{"$f":"IF(T24=\"\",\"\",VLOOKUP(T24,consequence[],2,FALSE))","v":""},null,{"$f":"IF(V24=\"\",\"\",VLOOKUP(V24,risk[],2,FALSE))","v":""},null,{"$f":"IF(X24=\"\",\"\",VLOOKUP(X24,rul_reset[],2,FALSE))","v":""},null,{"$f":"IF(Z24=\"\",\"\",VLOOKUP(Z24,use_default[],2,FALSE))","v":""},null,null,null,{"$f":"IF(AD24=\"\",\"\",VLOOKUP(AD24,condition[],2,FALSE))","v":""},null,null,{"$f":"IF(AG24=\"\",\"\",VLOOKUP(AG24,organisation[],2,FALSE))","v":""},null,null,null,{"$f":"IF(AK24=\"\",\"\",VLOOKUP(AK24,install_reason[],2,FALSE))","v":""},null,null,null,{"$f":"IF(AO24=\"\",\"\",VLOOKUP(AO24,replace_reason[],2,FALSE))","v":""}]
[{"$error":"#VALUE!"},{"$error":"#VALUE!"},null,null,null,null,{"$f":"IF(F25=\"\",\"\",VLOOKUP(F25,type[],2,FALSE))","v":""},null,null,{"$f":"IF(I25=\"\",\"\",VLOOKUP(I25,extra_length_reason[],2,FALSE))","v":""},null,null,{"$f":"IF(L25=\"\",\"\",VLOOKUP(L25,side[],2,FALSE))","v":""},null,null,null,{"$f":"IF(P25=\"\",\"\",VLOOKUP(P25,asset_owner[],2,FALSE))","v":""},null,{"$f":"IF(R25=\"\",\"\",VLOOKUP(R25,likelihood[],2,FALSE))","v":""},null,{"$f":"IF(T25=\"\",\"\",VLOOKUP(T25,consequence[],2,FALSE))","v":""},null,{"$f":"IF(V25=\"\",\"\",VLOOKUP(V25,risk[],2,FALSE))","v":""},null,{"$f":"IF(X25=\"\",\"\",VLOOKUP(X25,rul_reset[],2,FALSE))","v":""},null,{"$f":"IF(Z25=\"\",\"\",VLOOKUP(Z25,use_default[],2,FALSE))","v":""},null,null,null,{"$f":"IF(AD25=\"\",\"\",VLOOKUP(AD25,condition[],2,FALSE))","v":""},null,null,{"$f":"IF(AG25=\"\",\"\",VLOOKUP(AG25,organisation[],2,FALSE))","v":""},null,null,null,{"$f":"IF(AK25=\"\",\"\",VLOOKUP(AK25,install_reason[],2,FALSE))","v":""},null,null,null,{"$f":"IF(AO25=\"\",\"\",VLOOKUP(AO25,replace_reason[],2,FALSE))","v":""}]
[{"$error":"#VALUE!"},{"$error":"#VALUE!"},null,null,null,null,{"$f":"IF(F26=\"\",\"\",VLOOKUP(F26,type[],2,FALSE))","v":""},null,null,{"$f":"IF(I26=\"\",\"\",VLOOKUP(I26,extra_length_reason[],2,FALSE))","v":""},null,null,{"$f":"IF(L26=\"\",\"\",VLOOKUP(L26,side[],2,FALSE))","v":""},null,null,null,{"$f":"IF(P26=\"\",\"\",VLOOKUP(P26,asset_owner[],2,FALSE))","v":""},null,{"$f":"IF(R26=\"\",\"\",VLOOKUP(R26,likelihood[],2,FALSE))","v":""},null,{"$f":"IF(T26=\"\",\"\",VLOOKUP(T26,consequence[],2,FALSE))","v":""},null,{"$f":"IF(V26=\"\",\"\",VLOOKUP(V26,risk[],2,FALSE))","v":""},null,{"$f":"IF(X26=\"\",\"\",VLOOKUP(X26,rul_reset[],2,FALSE))","v":""},null,{"$f":"IF(Z26=\"\",\"\",VLOOKUP(Z26,use_default[],2,FALSE))","v":""},null,null,null,{"$f":"IF(AD26=\"\",\"\",VLOOKUP(AD26,condition[],2,FALSE))","v":""},null,null,{"$f":"IF(AG26=\"\",\"\",VLOOKUP(AG26,organisation[],2,FALSE))","v":""},null,null,null,{"$f":"IF(AK26=\"\",\"\",VLOOKUP(AK26,install_reason[],2,FALSE))","v":""},null,null,null,{"$f":"IF(AO26=\"\",\"\",VLOOKUP(AO26,replace_reason[],2,FALSE))","v":""}]
[{"$error":"#VALUE!"},{"$error":"#VALUE!"},null,null,null,null,{"$f":"IF(F27=\"\",\"\",VLOOKUP(F27,type[],2,FALSE))","v":""},null,null,{"$f":"IF(I27=\"\",\"\",VLOOKUP(I27,extra_length_reason[],2,FALSE))","v":""},null,null,{"$f":"IF(L27=\"\",\"\",VLOOKUP(L27,side[],2,FALSE))","v":""},null,null,null,{"$f":"IF(P27=\"\",\"\",VLOOKUP(P27,asset_owner[],2,FALSE))","v":""},null,{"$f":"IF(R27=\"\",\"\",VLOOKUP(R27,likelihood[],2,FALSE))","v":""},null,{"$f":"IF(T27=\"\",\"\",VLOOKUP(T27,consequence[],2,FALSE))","v":""},null,{"$f":"IF(V27=\"\",\"\",VLOOKUP(V27,risk[],2,FALSE))","v":""},null,{"$f":"IF(X27=\"\",\"\",VLOOKUP(X27,rul_reset[],2,FALSE))","v":""},null,{"$f":"IF(Z27=\"\",\"\",VLOOKUP(Z27,use_default[],2,FALSE))","v":""},null,null,null,{"$f":"IF(AD27=\"\",\"\",VLOOKUP(AD27,condition[],2,FALSE))","v":""},null,null,{"$f":"IF(AG27=\"\",\"\",VLOOKUP(AG27,organisation[],2,FALSE))","v":""},null,null,null,{"$f":"IF(AK27=\"\",\"\",VLOOKUP(AK27,install_reason[],2,FALSE))","v":""},null,null,null,{"$f":"IF(AO27=\"\",\"\",VLOOKUP(AO27,replace_reason[],2,FALSE))","v":""}]
[{"$error":"#VALUE!"},{"$error":"#VALUE!"},null,null,null,null,{"$f":"IF(F28=\"\",\"\",VLOOKUP(F28,type[],2,FALSE))","v":""},null,null,{"$f":"IF(I28=\"\",\"\",VLOOKUP(I28,extra_length_reason[],2,FALSE))","v":""},null,null,{"$f":"IF(L28=\"\",\"\",VLOOKUP(L28,side[],2,FALSE))","v":""},null,null,null,{"$f":"IF(P28=\"\",\"\",VLOOKUP(P28,asset_owner[],2,FALSE))","v":""},null,{"$f":"IF(R28=\"\",\"\",VLOOKUP(R28,likelihood[],2,FALSE))","v":""},null,{"$f":"IF(T28=\"\",\"\",VLOOKUP(T28,consequence[],2,FALSE))","v":""},null,{"$f":"IF(V28=\"\",\"\",VLOOKUP(V28,risk[],2,FALSE))","v":""},null,{"$f":"IF(X28=\"\",\"\",VLOOKUP(X28,rul_reset[],2,FALSE))","v":""},null,{"$f":"IF(Z28=\"\",\"\",VLOOKUP(Z28,use_default[],2,FALSE))","v":""},null,null,null,{"$f":"IF(AD28=\"\",\"\",VLOOKUP(AD28,condition[],2,FALSE))","v":""},null,null,{"$f":"IF(AG28=\"\",\"\",VLOOKUP(AG28,organisation[],2,FALSE))","v":""},null,null,null,{"$f":"IF(AK28=\"\",\"\",VLOOKUP(AK28,install_reason[],2,FALSE))","v":""},null,null,null,{"$f":"IF(AO28=\"\",\"\",VLOOKUP(AO28,replace_reason[],2,FALSE))","v":""}]
[{"$error":"#VALUE!"},{"$error":"#VALUE!"},null,null,null,null,{"$f":"IF(F29=\"\",\"\",VLOOKUP(F29,type[],2,FALSE))","v":""},null,null,{"$f":"IF(I29=\"\",\"\",VLOOKUP(I29,extra_length_reason[],2,FALSE))","v":""},null,null,{"$f":"IF(L29=\"\",\"\",VLOOKUP(L29,side[],2,FALSE))","v":""},null,null,null,{"$f":"IF(P29=\"\",\"\",VLOOKUP(P29,asset_owner[],2,FALSE))","v":""},null,{"$f":"IF(R29=\"\",\"\",VLOOKUP(R29,likelihood[],2,FALSE))","v":""},null,{"$f":"IF(T29=\"\",\"\",VLOOKUP(T29,consequence[],2,FALSE))","v":""},null,{"$f":"IF(V29=\"\",\"\",VLOOKUP(V29,risk[],2,FALSE))","v":""},null,{"$f":"IF(X29=\"\",\"\",VLOOKUP(X29,rul_reset[],2,FALSE))","v":""},null,{"$f":"IF(Z29=\"\",\"\",VLOOKUP(Z29,use_default[],2,FALSE))","v":""},null,null,null,{"$f":"IF(AD29=\"\",\"\",VLOOKUP(AD29,condition[],2,FALSE))","v":""},null,null,{"$f":"IF(AG29=\"\",\"\",VLOOKUP(AG29,organisation[],2,FALSE))","v":""},null,null,null,{"$f":"IF(AK29=\"\",\"\",VLOOKUP(AK29,install_reason[],2,FALSE))","v":""},null,null,null,{"$f":"IF(AO29=\"\",\"\",VLOOKUP(AO29,replace_reason[],2,FALSE))","v":""}]
[{"$error":"#VALUE!"},{"$error":"#VALUE!"},null,null,null,null,{"$f":"IF(F30=\"\",\"\",VLOOKUP(F30,type[],2,FALSE))","v":""},null,null,{"$f":"IF(I30=\"\",\"\",VLOOKUP(I30,extra_length_reason[],2,FALSE))","v":""},null,null,{"$f":"IF(L30=\"\",\"\",VLOOKUP(L30,side[],2,FALSE))","v":""},null,null,null,{"$f":"IF(P30=\"\",\"\",VLOOKUP(P30,asset_owner[],2,FALSE))","v":""},null,{"$f":"IF(R30=\"\",\"\",VLOOKUP(R30,likelihood[],2,FALSE))","v":""},null,{"$f":"IF(T30=\"\",\"\",VLOOKUP(T30,consequence[],2,FALSE))","v":""},null,{"$f":"IF(V30=\"\",\"\",VLOOKUP(V30,risk[],2,FALSE))","v":""},null,{"$f":"IF(X30=\"\",\"\",VLOOKUP(X30,rul_reset[],2,FALSE))","v":""},null,{"$f":"IF(Z30=\"\",\"\",VLOOKUP(Z30,use_default[],2,FALSE))","v":""},null,null,null,{"$f":"IF(AD30=\"\",\"\",VLOOKUP(AD30,condition[],2,FALSE))","v":""},null,null,{"$f":"IF(AG30=\"\",\"\",VLOOKUP(AG30,organisation[],2,FALSE))","v":""},null,null,null,{"$f":"IF(AK30=\"\",\"\",VLOOKUP(AK30,install_reason[],2,FALSE))","v":""},null,null,null,{"$f":"IF(AO30=\"\",\"\",VLOOKUP(AO30,replace_reason[],2,FALSE))","v":""}]
[{"$error":"#VALUE!"},{"$error":"#VALUE!"},null,null,null,null,{"$f":"IF(F31=\"\",\"\",VLOOKUP(F31,type[],2,FALSE))","v":""},null,null,{"$f":"IF(I31=\"\",\"\",VLOOKUP(I31,extra_length_reason[],2,FALSE))","v":""},null,null,{"$f":"IF(L31=\"\",\"\",VLOOKUP(L31,side[],2,FALSE))","v":""},null,null,null,{"$f":"IF(P31=\"\",\"\",VLOOKUP(P31,asset_owner[],2,FALSE))","v":""},null,{"$f":"IF(R31=\"\",\"\",VLOOKUP(R31,likelihood[],2,FALSE))","v":""},null,{"$f":"IF(T31=\"\",\"\",VLOOKUP(T31,consequence[],2,FALSE))","v":""},null,{"$f":"IF(V31=\"\",\"\",VLOOKUP(V31,risk[],2,FALSE))","v":""},null,{"$f":"IF(X31=\"\",\"\",VLOOKUP(X31,rul_reset[],2,FALSE))","v":""},null,{"$f":"IF(Z31=\"\",\"\",VLOOKUP(Z31,use_default[],2,FALSE))","v":""},null,null,null,{"$f":"IF(AD31=\"\",\"\",VLOOKUP(AD31,condition[],2,FALSE))","v":""},null,null,{"$f":"IF(AG31=\"\",\"\",VLOOKUP(AG31,organisation[],2,FALSE))","v":""},null,null,null,{"$f":"IF(AK31=\"\",\"\",VLOOKUP(AK31,install_reason[],2,FALSE))","v":""},null,null,null,{"$f":"IF(AO31=\"\",\"\",VLOOKUP(AO31,replace_reason[],2,FALSE))","v":""}]
[{"$error":"#VALUE!"},{"$error":"#VALUE!"},null,null,null,null,{"$f":"IF(F32=\"\",\"\",VLOOKUP(F32,type[],2,FALSE))","v":""},null,null,{"$f":"IF(I32=\"\",\"\",VLOOKUP(I32,extra_length_reason[],2,FALSE))","v":""},null,null,{"$f":"IF(L32=\"\",\"\",VLOOKUP(L32,side[],2,FALSE))","v":""},null,null,null,{"$f":"IF(P32=\"\",\"\",VLOOKUP(P32,asset_owner[],2,FALSE))","v":""},null,{"$f":"IF(R32=\"\",\"\",VLOOKUP(R32,likelihood[],2,FALSE))","v":""},null,{"$f":"IF(T32=\"\",\"\",VLOOKUP(T32,consequence[],2,FALSE))","v":""},null,{"$f":"IF(V32=\"\",\"\",VLOOKUP(V32,risk[],2,FALSE))","v":""},null,{"$f":"IF(X32=\"\",\"\",VLOOKUP(X32,rul_reset[],2,FALSE))","v":""},null,{"$f":"IF(Z32=\"\",\"\",VLOOKUP(Z32,use_default[],2,FALSE))","v":""},null,null,null,{"$f":"IF(AD32=\"\",\"\",VLOOKUP(AD32,condition[],2,FALSE))","v":""},null,null,{"$f":"IF(AG32=\"\",\"\",VLOOKUP(AG32,organisation[],2,FALSE))","v":""},null,null,null,{"$f":"IF(AK32=\"\",\"\",VLOOKUP(AK32,install_reason[],2,FALSE))","v":""},null,null,null,{"$f":"IF(AO32=\"\",\"\",VLOOKUP(AO32,replace_reason[],2,FALSE))","v":""}]
[{"$error":"#VALUE!"},{"$error":"#VALUE!"},null,null,null,null,{"$f":"IF(F33=\"\",\"\",VLOOKUP(F33,type[],2,FALSE))","v":""},null,null,{"$f":"IF(I33=\"\",\"\",VLOOKUP(I33,extra_length_reason[],2,FALSE))","v":""},null,null,{"$f":"IF(L33=\"\",\"\",VLOOKUP(L33,side[],2,FALSE))","v":""},null,null,null,{"$f":"IF(P33=\"\",\"\",VLOOKUP(P33,asset_owner[],2,FALSE))","v":""},null,{"$f":"IF(R33=\"\",\"\",VLOOKUP(R33,likelihood[],2,FALSE))","v":""},null,{"$f":"IF(T33=\"\",\"\",VLOOKUP(T33,consequence[],2,FALSE))","v":""},null,{"$f":"IF(V33=\"\",\"\",VLOOKUP(V33,risk[],2,FALSE))","v":""},null,{"$f":"IF(X33=\"\",\"\",VLOOKUP(X33,rul_reset[],2,FALSE))","v":""},null,{"$f":"IF(Z33=\"\",\"\",VLOOKUP(Z33,use_default[],2,FALSE))","v":""},null,null,null,{"$f":"IF(AD33=\"\",\"\",VLOOKUP(AD33,condition[],2,FALSE))","v":""},null,null,{"$f":"IF(AG33=\"\",\"\",VLOOKUP(AG33,organisation[],2,FALSE))","v":""},null,null,null,{"$f":"IF(AK33=\"\",\"\",VLOOKUP(AK33,install_reason[],2,FALSE))","v":""},null,null,null,{"$f":"IF(AO33=\"\",\"\",VLOOKUP(AO33,replace_reason[],2,FALSE))","v":""}]
[{"$error":"#VALUE!"},{"$error":"#VALUE!"},null,null,null,null,{"$f":"IF(F34=\"\",\"\",VLOOKUP(F34,type[],2,FALSE))","v":""},null,null,{"$f":"IF(I34=\"\",\"\",VLOOKUP(I34,extra_length_reason[],2,FALSE))","v":""},null,null,{"$f":"IF(L34=\"\",\"\",VLOOKUP(L34,side[],2,FALSE))","v":""},null,null,null,{"$f":"IF(P34=\"\",\"\",VLOOKUP(P34,asset_owner[],2,FALSE))","v":""},null,{"$f":"IF(R34=\"\",\"\",VLOOKUP(R34,likelihood[],2,FALSE))","v":""},null,{"$f":"IF(T34=\"\",\"\",VLOOKUP(T34,consequence[],2,FALSE))","v":""},null,{"$f":"IF(V34=\"\",\"\",VLOOKUP(V34,risk[],2,FALSE))","v":""},null,{"$f":"IF(X34=\"\",\"\",VLOOKUP(X34,rul_reset[],2,FALSE))","v":""},null,{"$f":"IF(Z34=\"\",\"\",VLOOKUP(Z34,use_default[],2,FALSE))","v":""},null,null,null,{"$f":"IF(AD34=\"\",\"\",VLOOKUP(AD34,condition[],2,FALSE))","v":""},null,null,{"$f":"IF(AG34=\"\",\"\",VLOOKUP(AG34,organisation[],2,FALSE))","v":""},null,null,null,{"$f":"IF(AK34=\"\",\"\",VLOOKUP(AK34,install_reason[],2,FALSE))","v":""},null,null,null,{"$f":"IF(AO34=\"\",\"\",VLOOKUP(AO34,replace_reason[],2,FALSE))","v":""}]
[{"$error":"#VALUE!"},{"$error":"#VALUE!"},null,null,null,null,{"$f":"IF(F35=\"\",\"\",VLOOKUP(F35,type[],2,FALSE))","v":""},null,null,{"$f":"IF(I35=\"\",\"\",VLOOKUP(I35,extra_length_reason[],2,FALSE))","v":""},null,null,{"$f":"IF(L35=\"\",\"\",VLOOKUP(L35,side[],2,FALSE))","v":""},null,null,null,{"$f":"IF(P35=\"\",\"\",VLOOKUP(P35,asset_owner[],2,FALSE))","v":""},null,{"$f":"IF(R35=\"\",\"\",VLOOKUP(R35,likelihood[],2,FALSE))","v":""},null,{"$f":"IF(T35=\"\",\"\",VLOOKUP(T35,consequence[],2,FALSE))","v":""},null,{"$f":"IF(V35=\"\",\"\",VLOOKUP(V35,risk[],2,FALSE))","v":""},null,{"$f":"IF(X35=\"\",\"\",VLOOKUP(X35,rul_reset[],2,FALSE))","v":""},null,{"$f":"IF(Z35=\"\",\"\",VLOOKUP(Z35,use_default[],2,FALSE))","v":""},null,null,null,{"$f":"IF(AD35=\"\",\"\",VLOOKUP(AD35,condition[],2,FALSE))","v":""},null,null,{"$f":"IF(AG35=\"\",\"\",VLOOKUP(AG35,organisation[],2,FALSE))","v":""},null,null,null,{"$f":"IF(AK35=\"\",\"\",VLOOKUP(AK35,install_reason[],2,FALSE))","v":""},null,null,null,{"$f":"IF(AO35=\"\",\"\",VLOOKUP(AO35,replace_reason[],2,FALSE))","v":""}]
[{"$error":"#VALUE!"},{"$error":"#VALUE!"},null,null,null,null,{"$f":"IF(F36=\"\",\"\",VLOOKUP(F36,type[],2,FALSE))","v":""},null,null,{"$f":"IF(I36=\"\",\"\",VLOOKUP(I36,extra_length_reason[],2,FALSE))","v":""},null,null,{"$f":"IF(L36=\"\",\"\",VLOOKUP(L36,side[],2,FALSE))","v":""},null,null,null,{"$f":"IF(P36=\"\",\"\",VLOOKUP(P36,asset_owner[],2,FALSE))","v":""},null,{"$f":"IF(R36=\"\",\"\",VLOOKUP(R36,likelihood[],2,FALSE))","v":""},null,{"$f":"IF(T36=\"\",\"\",VLOOKUP(T36,consequence[],2,FALSE))","v":""},null,{"$f":"IF(V36=\"\",\"\",VLOOKUP(V36,risk[],2,FALSE))","v":""},null,{"$f":"IF(X36=\"\",\"\",VLOOKUP(X36,rul_reset[],2,FALSE))","v":""},null,{"$f":"IF(Z36=\"\",\"\",VLOOKUP(Z36,use_default[],2,FALSE))","v":""},null,null,null,{"$f":"IF(AD36=\"\",\"\",VLOOKUP(AD36,condition[],2,FALSE))","v":""},null,null,{"$f":"IF(AG36=\"\",\"\",VLOOKUP(AG36,organisation[],2,FALSE))","v":""},null,null,null,{"$f":"IF(AK36=\"\",\"\",VLOOKUP(AK36,install_reason[],2,FALSE))","v":""},null,null,null,{"$f":"IF(AO36=\"\",\"\",VLOOKUP(AO36,replace_reason[],2,FALSE))","v":""}]
[{"$error":"#VALUE!"},{"$error":"#VALUE!"},null,null,null,null,{"$f":"IF(F37=\"\",\"\",VLOOKUP(F37,type[],2,FALSE))","v":""},null,null,{"$f":"IF(I37=\"\",\"\",VLOOKUP(I37,extra_length_reason[],2,FALSE))","v":""},null,null,{"$f":"IF(L37=\"\",\"\",VLOOKUP(L37,side[],2,FALSE))","v":""},null,null,null,{"$f":"IF(P37=\"\",\"\",VLOOKUP(P37,asset_owner[],2,FALSE))","v":""},null,{"$f":"IF(R37=\"\",\"\",VLOOKUP(R37,likelihood[],2,FALSE))","v":""},null,{"$f":"IF(T37=\"\",\"\",VLOOKUP(T37,consequence[],2,FALSE))","v":""},null,{"$f":"IF(V37=\"\",\"\",VLOOKUP(V37,risk[],2,FALSE))","v":""},null,{"$f":"IF(X37=\"\",\"\",VLOOKUP(X37,rul_reset[],2,FALSE))","v":""},null,{"$f":"IF(Z37=\"\",\"\",VLOOKUP(Z37,use_default[],2,FALSE))","v":""},null,null,null,{"$f":"IF(AD37=\"\",\"\",VLOOKUP(AD37,condition[],2,FALSE))","v":""},null,null,{"$f":"IF(AG37=\"\",\"\",VLOOKUP(AG37,organisation[],2,FALSE))","v":""},null,null,null,{"$f":"IF(AK37=\"\",\"\",VLOOKUP(AK37,install_reason[],2,FALSE))","v":""},null,null,null,{"$f":"IF(AO37=\"\",\"\",VLOOKUP(AO37,replace_reason[],2,FALSE))","v":""}]
[{"$error":"#VALUE!"},{"$error":"#VALUE!"},null,null,null,null,{"$f":"IF(F38=\"\",\"\",VLOOKUP(F38,type[],2,FALSE))","v":""},null,null,{"$f":"IF(I38=\"\",\"\",VLOOKUP(I38,extra_length_reason[],2,FALSE))","v":""},null,null,{"$f":"IF(L38=\"\",\"\",VLOOKUP(L38,side[],2,FALSE))","v":""},null,null,null,{"$f":"IF(P38=\"\",\"\",VLOOKUP(P38,asset_owner[],2,FALSE))","v":""},null,{"$f":"IF(R38=\"\",\"\",VLOOKUP(R38,likelihood[],2,FALSE))","v":""},null,{"$f":"IF(T38=\"\",\"\",VLOOKUP(T38,consequence[],2,FALSE))","v":""},null,{"$f":"IF(V38=\"\",\"\",VLOOKUP(V38,risk[],2,FALSE))","v":""},null,{"$f":"IF(X38=\"\",\"\",VLOOKUP(X38,rul_reset[],2,FALSE))","v":""},null,{"$f":"IF(Z38=\"\",\"\",VLOOKUP(Z38,use_default[],2,FALSE))","v":""},null,null,null,{"$f":"IF(AD38=\"\",\"\",VLOOKUP(AD38,condition[],2,FALSE))","v":""},null,null,{"$f":"IF(AG38=\"\",\"\",VLOOKUP(AG38,organisation[],2,FALSE))","v":""},null,null,null,{"$f":"IF(AK38=\"\",\"\",VLOOKUP(AK38,install_reason[],2,FALSE))","v":""},null,null,null,{"$f":"IF(AO38=\"\",\"\",VLOOKUP(AO38,replace_reason[],2,FALSE))","v":""}]
[{"$error":"#VALUE!"},{"$error":"#VALUE!"},null,null,null,null,{"$f":"IF(F39=\"\",\"\",VLOOKUP(F39,type[],2,FALSE))","v":""},null,null,{"$f":"IF(I39=\"\",\"\",VLOOKUP(I39,extra_length_reason[],2,FALSE))","v":""},null,null,{"$f":"IF(L39=\"\",\"\",VLOOKUP(L39,side[],2,FALSE))","v":""},null,null,null,{"$f":"IF(P39=\"\",\"\",VLOOKUP(P39,asset_owner[],2,FALSE))","v":""},null,{"$f":"IF(R39=\"\",\"\",VLOOKUP(R39,likelihood[],2,FALSE))","v":""},null,{"$f":"IF(T39=\"\",\"\",VLOOKUP(T39,consequence[],2,FALSE))","v":""},null,{"$f":"IF(V39=\"\",\"\",VLOOKUP(V39,risk[],2,FALSE))","v":""},null,{"$f":"IF(X39=\"\",\"\",VLOOKUP(X39,rul_reset[],2,FALSE))","v":""},null,{"$f":"IF(Z39=\"\",\"\",VLOOKUP(Z39,use_default[],2,FALSE))","v":""},null,null,null,{"$f":"IF(AD39=\"\",\"\",VLOOKUP(AD39,condition[],2,FALSE))","v":""},null,null,{"$f":"IF(AG39=\"\",\"\",VLOOKUP(AG39,organisation[],2,FALSE))","v":""},null,null,null,{"$f":"IF(AK39=\"\",\"\",VLOOKUP(AK39,install_reason[],2,FALSE))","v":""},null,null,null,{"$f":"IF(AO39=\"\",\"\",VLOOKUP(AO39,replace_reason[],2,FALSE))","v":""}]
[{"$error":"#VALUE!"},{"$error":"#VALUE!"},null,null,null,null,{"$f":"IF(F40=\"\",\"\",VLOOKUP(F40,type[],2,FALSE))","v":""},null,null,{"$f":"IF(I40=\"\",\"\",VLOOKUP(I40,extra_length_reason[],2,FALSE))","v":""},null,null,{"$f":"IF(L40=\"\",\"\",VLOOKUP(L40,side[],2,FALSE))","v":""},null,null,null,{"$f":"IF(P40=\"\",\"\",VLOOKUP(P40,asset_owner[],2,FALSE))","v":""},null,{"$f":"IF(R40=\"\",\"\",VLOOKUP(R40,likelihood[],2,FALSE))","v":""},null,{"$f":"IF(T40=\"\",\"\",VLOOKUP(T40,consequence[],2,FALSE))","v":""},null,{"$f":"IF(V40=\"\",\"\",VLOOKUP(V40,risk[],2,FALSE))","v":""},null,{"$f":"IF(X40=\"\",\"\",VLOOKUP(X40,rul_reset[],2,FALSE))","v":""},null,{"$f":"IF(Z40=\"\",\"\",VLOOKUP(Z40,use_default[],2,FALSE))","v":""},null,null,null,{"$f":"IF(AD40=\"\",\"\",VLOOKUP(AD40,condition[],2,FALSE))","v":""},null,null,{"$f":"IF(AG40=\"\",\"\",VLOOKUP(AG40,organisation[],2,FALSE))","v":""},null,null,null,{"$f":"IF(AK40=\"\",\"\",VLOOKUP(AK40,install_reason[],2,FALSE))","v":""},null,null,null,{"$f":"IF(AO40=\"\",\"\",VLOOKUP(AO40,replace_reason[],2,FALSE))","v":""}]
[{"$error":"#VALUE!"},{"$error":"#VALUE!"},null,null,null,null,{"$f":"IF(F41=\"\",\"\",VLOOKUP(F41,type[],2,FALSE))","v":""},null,null,{"$f":"IF(I41=\"\",\"\",VLOOKUP(I41,extra_length_reason[],2,FALSE))","v":""},null,null,{"$f":"IF(L41=\"\",\"\",VLOOKUP(L41,side[],2,FALSE))","v":""},null,null,null,{"$f":"IF(P41=\"\",\"\",VLOOKUP(P41,asset_owner[],2,FALSE))","v":""},null,{"$f":"IF(R41=\"\",\"\",VLOOKUP(R41,likelihood[],2,FALSE))","v":""},null,{"$f":"IF(T41=\"\",\"\",VLOOKUP(T41,consequence[],2,FALSE))","v":""},null,{"$f":"IF(V41=\"\",\"\",VLOOKUP(V41,risk[],2,FALSE))","v":""},null,{"$f":"IF(X41=\"\",\"\",VLOOKUP(X41,rul_reset[],2,FALSE))","v":""},null,{"$f":"IF(Z41=\"\",\"\",VLOOKUP(Z41,use_default[],2,FALSE))","v":""},null,null,null,{"$f":"IF(AD41=\"\",\"\",VLOOKUP(AD41,condition[],2,FALSE))","v":""},null,null,{"$f":"IF(AG41=\"\",\"\",VLOOKUP(AG41,organisation[],2,FALSE))","v":""},null,null,null,{"$f":"IF(AK41=\"\",\"\",VLOOKUP(AK41,install_reason[],2,FALSE))","v":""},null,null,null,{"$f":"IF(AO41=\"\",\"\",VLOOKUP(AO41,replace_reason[],2,FALSE))","v":""}]
[{"$error":"#VALUE!"},{"$error":"#VALUE!"},null,null,null,null,{"$f":"IF(F42=\"\",\"\",VLOOKUP(F42,type[],2,FALSE))","v":""},null,null,{"$f":"IF(I42=\"\",\"\",VLOOKUP(I42,extra_length_reason[],2,FALSE))","v":""},null,null,{"$f":"IF(L42=\"\",\"\",VLOOKUP(L42,side[],2,FALSE))","v":""},null,null,null,{"$f":"IF(P42=\"\",\"\",VLOOKUP(P42,asset_owner[],2,FALSE))","v":""},null,{"$f":"IF(R42=\"\",\"\",VLOOKUP(R42,likelihood[],2,FALSE))","v":""},null,{"$f":"IF(T42=\"\",\"\",VLOOKUP(T42,consequence[],2,FALSE))","v":""},null,{"$f":"IF(V42=\"\",\"\",VLOOKUP(V42,risk[],2,FALSE))","v":""},null,{"$f":"IF(X42=\"\",\"\",VLOOKUP(X42,rul_reset[],2,FALSE))","v":""},null,{"$f":"IF(Z42=\"\",\"\",VLOOKUP(Z42,use_default[],2,FALSE))","v":""},null,null,null,{"$f":"IF(AD42=\"\",\"\",VLOOKUP(AD42,condition[],2,FALSE))","v":""},null,null,{"$f":"IF(AG42=\"\",\"\",VLOOKUP(AG42,organisation[],2,FALSE))","v":""},null,null,null,{"$f":"IF(AK42=\"\",\"\",VLOOKUP(AK42,install_reason[],2,FALSE))","v":""},null,null,null,{"$f":"IF(AO42=\"\",\"\",VLOOKUP(AO42,replace_reason[],2,FALSE))","v":""}]
[{"$error":"#VALUE!"},{"$error":"#VALUE!"},null,null,null,null,{"$f":"IF(F43=\"\",\"\",VLOOKUP(F43,type[],2,FALSE))","v":""},null,null,{"$f":"IF(I43=\"\",\"\",VLOOKUP(I43,extra_length_reason[],2,FALSE))","v":""},null,null,{"$f":"IF(L43=\"\",\"\",VLOOKUP(L43,side[],2,FALSE))","v":""},null,null,null,{"$f":"IF(P43=\"\",\"\",VLOOKUP(P43,asset_owner[],2,FALSE))","v":""},null,{"$f":"IF(R43=\"\",\"\",VLOOKUP(R43,likelihood[],2,FALSE))","v":""},null,{"$f":"IF(T43=\"\",\"\",VLOOKUP(T43,consequence[],2,FALSE))","v":""},null,{"$f":"IF(V43=\"\",\"\",VLOOKUP(V43,risk[],2,FALSE))","v":""},null,{"$f":"IF(X43=\"\",\"\",VLOOKUP(X43,rul_reset[],2,FALSE))","v":""},null,{"$f":"IF(Z43=\"\",\"\",VLOOKUP(Z43,use_default[],2,FALSE))","v":""},null,null,null,{"$f":"IF(AD43=\"\",\"\",VLOOKUP(AD43,condition[],2,FALSE))","v":""},null,null,{"$f":"IF(AG43=\"\",\"\",VLOOKUP(AG43,organisation[],2,FALSE))","v":""},null,null,null,{"$f":"IF(AK43=\"\",\"\",VLOOKUP(AK43,install_reason[],2,FALSE))","v":""},null,null,null,{"$f":"IF(AO43=\"\",\"\",VLOOKUP(AO43,replace_reason[],2,FALSE))","v":""}]
[{"$error":"#VALUE!"},{"$error":"#VALUE!"},null,null,null,null,{"$f":"IF(F44=\"\",\"\",VLOOKUP(F44,type[],2,FALSE))","v":""},null,null,{"$f":"IF(I44=\"\",\"\",VLOOKUP(I44,extra_length_reason[],2,FALSE))","v":""},null,null,{"$f":"IF(L44=\"\",\"\",VLOOKUP(L44,side[],2,FALSE))","v":""},null,null,null,{"$f":"IF(P44=\"\",\"\",VLOOKUP(P44,asset_owner[],2,FALSE))","v":""},null,{"$f":"IF(R44=\"\",\"\",VLOOKUP(R44,likelihood[],2,FALSE))","v":""},null,{"$f":"IF(T44=\"\",\"\",VLOOKUP(T44,consequence[],2,FALSE))","v":""},null,{"$f":"IF(V44=\"\",\"\",VLOOKUP(V44,risk[],2,FALSE))","v":""},null,{"$f":"IF(X44=\"\",\"\",VLOOKUP(X44,rul_reset[],2,FALSE))","v":""},null,{"$f":"IF(Z44=\"\",\"\",VLOOKUP(Z44,use_default[],2,FALSE))","v":""},null,null,null,{"$f":"IF(AD44=\"\",\"\",VLOOKUP(AD44,condition[],2,FALSE))","v":""},null,null,{"$f":"IF(AG44=\"\",\"\",VLOOKUP(AG44,organisation[],2,FALSE))","v":""},null,null,null,{"$f":"IF(AK44=\"\",\"\",VLOOKUP(AK44,install_reason[],2,FALSE))","v":""},null,null,null,{"$f":"IF(AO44=\"\",\"\",VLOOKUP(AO44,replace_reason[],2,FALSE))","v":""}]
[{"$error":"#VALUE!"},{"$error":"#VALUE!"},null,null,null,null,{"$f":"IF(F45=\"\",\"\",VLOOKUP(F45,type[],2,FALSE))","v":""},null,null,{"$f":"IF(I45=\"\",\"\",VLOOKUP(I45,extra_length_reason[],2,FALSE))","v":""},null,null,{"$f":"IF(L45=\"\",\"\",VLOOKUP(L45,side[],2,FALSE))","v":""},null,null,null,{"$f":"IF(P45=\"\",\"\",VLOOKUP(P45,asset_owner[],2,FALSE))","v":""},null,{"$f":"IF(R45=\"\",\"\",VLOOKUP(R45,likelihood[],2,FALSE))","v":""},null,{"$f":"IF(T45=\"\",\"\",VLOOKUP(T45,consequence[],2,FALSE))","v":""},null,{"$f":"IF(V45=\"\",\"\",VLOOKUP(V45,risk[],2,FALSE))","v":""},null,{"$f":"IF(X45=\"\",\"\",VLOOKUP(X45,rul_reset[],2,FALSE))","v":""},null,{"$f":"IF(Z45=\"\",\"\",VLOOKUP(Z45,use_default[],2,FALSE))","v":""},null,null,null,{"$f":"IF(AD45=\"\",\"\",VLOOKUP(AD45,condition[],2,FALSE))","v":""},null,null,{"$f":"IF(AG45=\"\",\"\",VLOOKUP(AG45,organisation[],2,FALSE))","v":""},null,null,null,{"$f":"IF(AK45=\"\",\"\",VLOOKUP(AK45,install_reason[],2,FALSE))","v":""},null,null,null,{"$f":"IF(AO45=\"\",\"\",VLOOKUP(AO45,replace_reason[],2,FALSE))","v":""}]
[{"$error":"#VALUE!"},{"$error":"#VALUE!"},null,null,null,null,{"$f":"IF(F46=\"\",\"\",VLOOKUP(F46,type[],2,FALSE))","v":""},null,null,{"$f":"IF(I46=\"\",\"\",VLOOKUP(I46,extra_length_reason[],2,FALSE))","v":""},null,null,{"$f":"IF(L46=\"\",\"\",VLOOKUP(L46,side[],2,FALSE))","v":""},null,null,null,{"$f":"IF(P46=\"\",\"\",VLOOKUP(P46,asset_owner[],2,FALSE))","v":""},null,{"$f":"IF(R46=\"\",\"\",VLOOKUP(R46,likelihood[],2,FALSE))","v":""},null,{"$f":"IF(T46=\"\",\"\",VLOOKUP(T46,consequence[],2,FALSE))","v":""},null,{"$f":"IF(V46=\"\",\"\",VLOOKUP(V46,risk[],2,FALSE))","v":""},null,{"$f":"IF(X46=\"\",\"\",VLOOKUP(X46,rul_reset[],2,FALSE))","v":""},null,{"$f":"IF(Z46=\"\",\"\",VLOOKUP(Z46,use_default[],2,FALSE))","v":""},null,null,null,{"$f":"IF(AD46=\"\",\"\",VLOOKUP(AD46,condition[],2,FALSE))","v":""},null,null,{"$f":"IF(AG46=\"\",\"\",VLOOKUP(AG46,organisation[],2,FALSE))","v":""},null,null,null,{"$f":"IF(AK46=\"\",\"\",VLOOKUP(AK46,install_reason[],2,FALSE))","v":""},null,null,null,{"$f":"IF(AO46=\"\",\"\",VLOOKUP(AO46,replace_reason[],2,FALSE))","v":""}]
[{"$error":"#VALUE!"},{"$error":"#VALUE!"},null,null,null,null,{"$f":"IF(F47=\"\",\"\",VLOOKUP(F47,type[],2,FALSE))","v":""},null,null,{"$f":"IF(I47=\"\",\"\",VLOOKUP(I47,extra_length_reason[],2,FALSE))","v":""},null,null,{"$f":"IF(L47=\"\",\"\",VLOOKUP(L47,side[],2,FALSE))","v":""},null,null,null,{"$f":"IF(P47=\"\",\"\",VLOOKUP(P47,asset_owner[],2,FALSE))","v":""},null,{"$f":"IF(R47=\"\",\"\",VLOOKUP(R47,likelihood[],2,FALSE))","v":""},null,{"$f":"IF(T47=\"\",\"\",VLOOKUP(T47,consequence[],2,FALSE))","v":""},null,{"$f":"IF(V47=\"\",\"\",VLOOKUP(V47,risk[],2,FALSE))","v":""},null,{"$f":"IF(X47=\"\",\"\",VLOOKUP(X47,rul_reset[],2,FALSE))","v":""},null,{"$f":"IF(Z47=\"\",\"\",VLOOKUP(Z47,use_default[],2,FALSE))","v":""},null,null,null,{"$f":"IF(AD47=\"\",\"\",VLOOKUP(AD47,condition[],2,FALSE))","v":""},null,null,{"$f":"IF(AG47=\"\",\"\",VLOOKUP(AG47,organisation[],2,FALSE))","v":""},null,null,null,{"$f":"IF(AK47=\"\",\"\",VLOOKUP(AK47,install_reason[],2,FALSE))","v":""},null,null,null,{"$f":"IF(AO47=\"\",\"\",VLOOKUP(AO47,replace_reason[],2,FALSE))","v":""}]
[{"$error":"#VALUE!"},{"$error":"#VALUE!"},null,null,null,null,{"$f":"IF(F48=\"\",\"\",VLOOKUP(F48,type[],2,FALSE))","v":""},null,null,{"$f":"IF(I48=\"\",\"\",VLOOKUP(I48,extra_length_reason[],2,FALSE))","v":""},null,null,{"$f":"IF(L48=\"\",\"\",VLOOKUP(L48,side[],2,FALSE))","v":""},null,null,null,{"$f":"IF(P48=\"\",\"\",VLOOKUP(P48,asset_owner[],2,FALSE))","v":""},null,{"$f":"IF(R48=\"\",\"\",VLOOKUP(R48,likelihood[],2,FALSE))","v":""},null,{"$f":"IF(T48=\"\",\"\",VLOOKUP(T48,consequence[],2,FALSE))","v":""},null,{"$f":"IF(V48=\"\",\"\",VLOOKUP(V48,risk[],2,FALSE))","v":""},null,{"$f":"IF(X48=\"\",\"\",VLOOKUP(X48,rul_reset[],2,FALSE))","v":""},null,{"$f":"IF(Z48=\"\",\"\",VLOOKUP(Z48,use_default[],2,FALSE))","v":""},null,null,null,{"$f":"IF(AD48=\"\",\"\",VLOOKUP(AD48,condition[],2,FALSE))","v":""},null,null,{"$f":"IF(AG48=\"\",\"\",VLOOKUP(AG48,organisation[],2,FALSE))","v":""},null,null,null,{"$f":"IF(AK48=\"\",\"\",VLOOKUP(AK48,install_reason[],2,FALSE))","v":""},null,null,null,{"$f":"IF(AO48=\"\",\"\",VLOOKUP(AO48,replace_reason[],2,FALSE))","v":""}]

{"sheet":"Lookups","index":1,"n_rows":156,"n_cols":42,"rows_kept":156,"cut":false,"hidden":false,"merged":[]}
["type description","type",null,"extra length reason description","extra length reason",null,"side description","side",null,"install reason description","install reason",null,"asset owner description","asset owner",null,"likelihood description","likelihood",null,"consequence description","consequence",null,"risk description","risk",null,"rul reset description","rul reset",null,"use default description","use default",null,"condition description","condition",null,"organisation description","organisation",null,"replace reason description","replace reason",null,"work origin",null,"work category"]
["Asphaltic Concrete Bund","AC",null,"Ends away from the road","AWAY",null,"Left","L",null,"Asset Renewal - end of life","01",null,"Crown","C",null,"Rare","1",null,"Insignificant","1",null,"Very Low","1",null,"Not Reset","N",null,"Default","D",null,"Excellent","1",null,"3M","3M",null,"Asset Renewal - end of life","01",null,"Base Preservation Drainage Length",null,"113 - Routine Drainage Maintenance"]
["Dished Channel (Asphalt)","DA",null,"Ends beyond Road End","BYOND",null,"Right","R",null,"Crash Damage","02",null,"Local Authority","L",null,"Unlikely","2",null,"Minor","2",null,"Low","2",null,"Reset to Zero","R",null,"User","U",null,"Good","2",null,"Automobile Association","AA",null,"Crash Damage","02",null,"Cycling facilities",null,"141 - Emergency Works"]
["Dished Channel (Concrete)","DC",null,"Common Section","COM",null,null,null,null,"Missing","03",null,"Private","P",null,"Possible","3",null,"Moderate","3",null,"Medium","3",null,null,null,null,null,null,null,"Average","3",null,"Auckland Council","ACC",null,"Missing","03",null,"Drainage renewals",null,"213 - Drainage Renewals"]
["Dished Channel (Half Pipe)","DP",null,"Cul de sac","CUL",null,null,null,null,"Projects","04",null,null,null,null,"Likely","4",null,"Major","4",null,"High","4",null,null,null,null,null,null,null,"Poor","4",null,"Alarm Centre Installation Ltd","ACI",null,"Projects","04",null,"Efficiency",null,"323 - New Roads"]
["Dished Channel (Sealed)","DS",null,"Dummy of No Length","DUMMY",null,null,null,null,"Vandalism","05",null,null,null,null,"Almost Certain","5",null,"Extreme","5",null,"Extreme","5",null,null,null,null,null,null,null,"Very poor","5",null,"Agfirst","AGF",null,"Vandalism","05",null,"Emergency works",null,"341 - Low cost, low risk roading improvements"]
["Grated Trench Drain","GTD",null,"Starts or Ends at an Intersection","ISECT",null,null,null,null,null,null,null,null,null,null,"Unknown","U",null,"Unknown","U",null,"Unknown","U",null,null,null,null,null,null,null,null,null,null,"Abley Ltd","AL",null,null,null,null,"New roads",null,"451 - Walking Facilities"]
["Kerb Only (Concrete)","KC",null,"No adjustments made","NONE",null,null,null,null,null,null,null,null,null,null,null,null,null,null,null,null,null,null,null,null,null,null,null,null,null,null,null,null,"Auckland Motorway Alliance","AMA",null,null,null,null,"Resilience",null,"452 - Cycling Facilities"]
["Kerb & Channel (Concrete)","KCC",null,"Roundabout","RAB",null,null,null,null,null,null,null,null,null,null,null,null,null,null,null,null,null,null,null,null,null,null,null,null,null,null,null,null,"Asset Management Engineers Ltd","AME",null,null,null,null,"Routine Maintenance",null,"998 - Unfunded Third Party Work"]
["Kerb & Channel (Stone)","KCS",null,"Widening","WIDEN",null,null,null,null,null,null,null,null,null,null,null,null,null,null,null,null,null,null,null,null,null,null,null,null,null,null,null,null,"Asset Management Technicians Ltd","AMT",null,null,null,null,"Safety",null,"999 - Unfunded Rework"]
["Kerb & Dished Channel (Concrete)","KDC",null,null,null,null,null,null,null,null,null,null,null,null,null,null,null,null,null,null,null,null,null,null,null,null,null,null,null,null,null,null,null,"Armitage Systems","ARM",null,null,null,null,"Unfunded rework"]
["Kerb Only (Stone)","KS",null,null,null,null,null,null,null,null,null,null,null,null,null,null,null,null,null,null,null,null,null,null,null,null,null,null,null,null,null,null,null,"Aspect Solutions Ltd","ASL",null,null,null,null,"Unfunded third party work"]
["Mountable Kerb Only (Concrete)","MKC",null,null,null,null,null,null,null,null,null,null,null,null,null,null,null,null,null,null,null,null,null,null,null,null,null,null,null,null,null,null,null,"Auckland System Management","ASM",null,null,null,null,"Walking facilities"]
["Mountable Kerb & Channel (Concrete)","MKCC",null,null,null,null,null,null,null,null,null,null,null,null,null,null,null,null,null,null,null,null,null,null,null,null,null,null,null,null,null,null,null,"Auckland Transport","AT2"]
["Rock Lined Channel","RKLC",null,null,null,null,null,null,null,null,null,null,null,null,null,null,null,null,null,null,null,null,null,null,null,null,null,null,null,null,null,null,null,"Aspect Technology and Equipment Ltd","ATE"]
["Slot Channel (Concrete)","SLTC",null,null,null,null,null,null,null,null,null,null,null,null,null,null,null,null,null,null,null,null,null,null,null,null,null,null,null,null,null,null,null,"ARRB Transport Research Ltd","ATR"]
["SWC (Deep, >200mm Below Seal Edge)","SWCD",null,null,null,null,null,null,null,null,null,null,null,null,null,null,null,null,null,null,null,null,null,null,null,null,null,null,null,null,null,null,null,"Auckland University","AUN"]
["SWC Deep - Spray Zone","SWCDS",null,null,null,null,null,null,null,null,null,null,null,null,null,null,null,null,null,null,null,null,null,null,null,null,null,null,null,null,null,null,null,"Broadspectrum (NZ) Ltd","B(L"]
["SWC (Shallow, <200mm Below Seal Edge)","SWCS",null,null,null,null,null,null,null,null,null,null,null,null,null,null,null,null,null,null,null,null,null,null,null,null,null,null,null,null,null,null,null,"Bri-Ken and Associates Ltd","BAA"]
["SWC Shallow - Spray Zone","SWCSS",null,null,null,null,null,null,null,null,null,null,null,null,null,null,null,null,null,null,null,null,null,null,null,null,null,null,null,null,null,null,null,"Bartley Consultants Ltd","BAR"]
[null,null,null,null,null,null,null,null,null,null,null,null,null,null,null,null,null,null,null,null,null,null,null,null,null,null,null,null,null,null,null,null,null,"Bloxam Burnett & Olliver Ltd","BB&"]
[null,null,null,null,null,null,null,null,null,null,null,null,null,null,null,null,null,null,null,null,null,null,null,null,null,null,null,null,null,null,null,null,null,"Beca Infrastructure","BCF"]
[null,null,null,null,null,null,null,null,null,null,null,null,null,null,null,null,null,null,null,null,null,null,null,null,null,null,null,null,null,null,null,null,null,"Buller District Council","BDC"]
[null,null,null,null,null,null,null,null,null,null,null,null,null,null,null,null,null,null,null,null,null,null,null,null,null,null,null,null,null,null,null,null,null,"Blacktop","BLA"]
[null,null,null,null,null,null,null,null,null,null,null,null,null,null,null,null,null,null,null,null,null,null,null,null,null,null,null,null,null,null,null,null,null,"Beca Ltd.","BLT"]
[null,null,null,null,null,null,null,null,null,null,null,null,null,null,null,null,null,null,null,null,null,null,null,null,null,null,null,null,null,null,null,null,null,"Civil Assist Ltd","CAL"]
[null,null,null,null,null,null,null,null,null,null,null,null,null,null,null,null,null,null,null,null,null,null,null,null,null,null,null,null,null,null,null,null,null,"Christchurch City Council","CCC"]
[null,null,null,null,null,null,null,null,null,null,null,null,null,null,null,null,null,null,null,null,null,null,null,null,null,null,null,null,null,null,null,null,null,"City Care Ltd","CCL"]
[null,null,null,null,null,null,null,null,null,null,null,null,null,null,null,null,null,null,null,null,null,null,null,null,null,null,null,null,null,null,null,null,null,"Currie Electrical Ltd.","CEL"]
[null,null,null,null,null,null,null,null,null,null,null,null,null,null,null,null,null,null,null,null,null,null,null,null,null,null,null,null,null,null,null,null,null,"Company-X Ltd.","CL"]
[null,null,null,null,null,null,null,null,null,null,null,null,null,null,null,null,null,null,null,null,null,null,null,null,null,null,null,null,null,null,null,null,null,"Critchlow Limited","CL2"]
[null,null,null,null,null,null,null,null,null,null,null,null,null,null,null,null,null,null,null,null,null,null,null,null,null,null,null,null,null,null,null,null,null,"Coastline Markers Ltd","CML"]
[null,null,null,null,null,null,null,null,null,null,null,null,null,null,null,null,null,null,null,null,null,null,null,null,null,null,null,null,null,null,null,null,null,"CoreLogic NZ Ltd.","CNL"]
[null,null,null,null,null,null,null,null,null,null,null,null,null,null,null,null,null,null,null,null,null,null,null,null,null,null,null,null,null,null,null,null,null,"Central Otago District Council","COD"]
[null,null,null,null,null,null,null,null,null,null,null,null,null,null,null,null,null,null,null,null,null,null,null,null,null,null,null,null,null,null,null,null,null,"Other Contractor","CON"]
[null,null,null,null,null,null,null,null,null,null,null,null,null,null,null,null,null,null,null,null,null,null,null,null,null,null,null,null,null,null,null,null,null,"CSL Traffic","CSL"]
[null,null,null,null,null,null,null,null,null,null,null,null,null,null,null,null,null,null,null,null,null,null,null,null,null,null,null,null,null,null,null,null,null,"Connell Wagner Ltd","CWL"]
[null,null,null,null,null,null,null,null,null,null,null,null,null,null,null,null,null,null,null,null,null,null,null,null,null,null,null,null,null,null,null,null,null,"Dunedin City Council","DCC"]
[null,null,null,null,null,null,null,null,null,null,null,null,null,null,null,null,null,null,null,null,null,null,null,null,null,null,null,null,null,null,null,null,null,"D & L Crowe Ltd","DLC"]
[null,null,null,null,null,null,null,null,null,null,null,null,null,null,null,null,null,null,null,null,null,null,null,null,null,null,null,null,null,null,null,null,null,"Spiire NZ Ltd","DWK"]
[null,null,null,null,null,null,null,null,null,null,null,null,null,null,null,null,null,null,null,null,null,null,null,null,null,null,null,null,null,null,null,null,null,"Excell Corporation","ECL"]
[null,null,null,null,null,null,null,null,null,null,null,null,null,null,null,null,null,null,null,null,null,null,null,null,null,null,null,null,null,null,null,null,null,"Ferguson Ind","FGI"]
[null,null,null,null,null,null,null,null,null,null,null,null,null,null,null,null,null,null,null,null,null,null,null,null,null,null,null,null,null,null,null,null,null,"Fulton Hogan (NZ) Ltd.","FUL"]
[null,null,null,null,null,null,null,null,null,null,null,null,null,null,null,null,null,null,null,null,null,null,null,null,null,null,null,null,null,null,null,null,null,"Gisborne District Council","GDC"]
[null,null,null,null,null,null,null,null,null,null,null,null,null,null,null,null,null,null,null,null,null,null,null,null,null,null,null,null,null,null,null,null,null,"Geosolve Ltd","GEO"]
[null,null,null,null,null,null,null,null,null,null,null,null,null,null,null,null,null,null,null,null,null,null,null,null,null,null,null,null,null,null,null,null,null,"GHD Ltd.","GHD"]
[null,null,null,null,null,null,null,null,null,null,null,null,null,null,null,null,null,null,null,null,null,null,null,null,null,null,null,null,null,null,null,null,null,"Hamilton City Council","HCC"]
[null,null,null,null,null,null,null,null,null,null,null,null,null,null,null,null,null,null,null,null,null,null,null,null,null,null,null,null,null,null,null,null,null,"Hauraki District Council","HDC"]
[null,null,null,null,null,null,null,null,null,null,null,null,null,null,null,null,null,null,null,null,null,null,null,null,null,null,null,null,null,null,null,null,null,"HEB Construction Ltd","HEB"]
[null,null,null,null,null,null,null,null,null,null,null,null,null,null,null,null,null,null,null,null,null,null,null,null,null,null,null,null,null,null,null,null,null,"Higgins Contractors Ltd.","HIG"]
[null,null,null,null,null,null,null,null,null,null,null,null,null,null,null,null,null,null,null,null,null,null,null,null,null,null,null,null,null,null,null,null,null,"HMI Technologies","HMI"]
[null,null,null,null,null,null,null,null,null,null,null,null,null,null,null,null,null,null,null,null,null,null,null,null,null,null,null,null,null,null,null,null,null,"HERE New Zealand Ltd","HNZ"]
[null,null,null,null,null,null,null,null,null,null,null,null,null,null,null,null,null,null,null,null,null,null,null,null,null,null,null,null,null,null,null,null,null,"Horizon Services Ltd","HSL"]
[null,null,null,null,null,null,null,null,null,null,null,null,null,null,null,null,null,null,null,null,null,null,null,null,null,null,null,null,null,null,null,null,null,"HTS Group","HTS"]
[null,null,null,null,null,null,null,null,null,null,null,null,null,null,null,null,null,null,null,null,null,null,null,null,null,null,null,null,null,null,null,null,null,"Inframix Construction Ltd","IMX"]
[null,null,null,null,null,null,null,null,null,null,null,null,null,null,null,null,null,null,null,null,null,null,null,null,null,null,null,null,null,null,null,null,null,"Inzone","INZ"]
[null,null,null,null,null,null,null,null,null,null,null,null,null,null,null,null,null,null,null,null,null,null,null,null,null,null,null,null,null,null,null,null,null,"Isaac Construction","ISC"]
[null,null,null,null,null,null,null,null,null,null,null,null,null,null,null,null,null,null,null,null,null,null,null,null,null,null,null,null,null,null,null,null,null,"Island Asphalts","ISL"]
[null,null,null,null,null,null,null,null,null,null,null,null,null,null,null,null,null,null,null,null,null,null,null,null,null,null,null,null,null,null,null,null,null,"ITS","ITS"]
[null,null,null,null,null,null,null,null,null,null,null,null,null,null,null,null,null,null,null,null,null,null,null,null,null,null,null,null,null,null,null,null,null,"Jacobs New Zealand Ltd","JAC"]
[null,null,null,null,null,null,null,null,null,null,null,null,null,null,null,null,null,null,null,null,null,null,null,null,null,null,null,null,null,null,null,null,null,"JCW Consultant","JC"]
[null,null,null,null,null,null,null,null,null,null,null,null,null,null,null,null,null,null,null,null,null,null,null,null,null,null,null,null,null,null,null,null,null,"JCL Asphalt subcontractor","JCL"]
[null,null,null,null,null,null,null,null,null,null,null,null,null,null,null,null,null,null,null,null,null,null,null,null,null,null,null,null,null,null,null,null,null,"JJ Walters","JJW"]
[null,null,null,null,null,null,null,null,null,null,null,null,null,null,null,null,null,null,null,null,null,null,null,null,null,null,null,null,null,null,null,null,null,"Johnstone & Masters Ltd","JM"]
[null,null,null,null,null,null,null,null,null,null,null,null,null,null,null,null,null,null,null,null,null,null,null,null,null,null,null,null,null,null,null,null,null,"NZTA (JTOC)","JTO"]
[null,null,null,null,null,null,null,null,null,null,null,null,null,null,null,null,null,null,null,null,null,null,null,null,null,null,null,null,null,null,null,null,null,"Juno Services Ltd","JUN"]
[null,null,null,null,null,null,null,null,null,null,null,null,null,null,null,null,null,null,null,null,null,null,null,null,null,null,null,null,null,null,null,null,null,"Kapiti Coast District Council","KCD"]
[null,null,null,null,null,null,null,null,null,null,null,null,null,null,null,null,null,null,null,null,null,null,null,null,null,null,null,null,null,null,null,null,null,"Kampung Consulting Ltd.","KCL"]
[null,null,null,null,null,null,null,null,null,null,null,null,null,null,null,null,null,null,null,null,null,null,null,null,null,null,null,null,null,null,null,null,null,"Kelcroft Engineering","KEL"]
[null,null,null,null,null,null,null,null,null,null,null,null,null,null,null,null,null,null,null,null,null,null,null,null,null,null,null,null,null,null,null,null,null,"Local Authority","LA"]
[null,null,null,null,null,null,null,null,null,null,null,null,null,null,null,null,null,null,null,null,null,null,null,null,null,null,null,null,null,null,null,null,null,"Lonrix Ltd","LL"]
[null,null,null,null,null,null,null,null,null,null,null,null,null,null,null,null,null,null,null,null,null,null,null,null,null,null,null,null,null,null,null,null,null,"McKays Consultants","MCC"]
[null,null,null,null,null,null,null,null,null,null,null,null,null,null,null,null,null,null,null,null,null,null,null,null,null,null,null,null,null,null,null,null,null,"Matamata-Piako District Council","MD2"]
[null,null,null,null,null,null,null,null,null,null,null,null,null,null,null,null,null,null,null,null,null,null,null,null,null,null,null,null,null,null,null,null,null,"Manawatu District Council","MDC"]
[null,null,null,null,null,null,null,null,null,null,null,null,null,null,null,null,null,null,null,null,null,null,null,null,null,null,null,null,null,null,null,null,null,"McKay Electrical Ltd","MEL"]
[null,null,null,null,null,null,null,null,null,null,null,null,null,null,null,null,null,null,null,null,null,null,null,null,null,null,null,null,null,null,null,null,null,"Aecom NZ Ltd","MER"]
[null,null,null,null,null,null,null,null,null,null,null,null,null,null,null,null,null,null,null,null,null,null,null,null,null,null,null,null,null,null,null,null,null,"MetService","MET"]
[null,null,null,null,null,null,null,null,null,null,null,null,null,null,null,null,null,null,null,null,null,null,null,null,null,null,null,null,null,null,null,null,null,"Marlborough NOC JV","MJV"]
[null,null,null,null,null,null,null,null,null,null,null,null,null,null,null,null,null,null,null,null,null,null,null,null,null,null,null,null,null,null,null,null,null,"McKay Ltd.","ML"]
[null,null,null,null,null,null,null,null,null,null,null,null,null,null,null,null,null,null,null,null,null,null,null,null,null,null,null,null,null,null,null,null,null,"Marlborough Roads","MR"]
[null,null,null,null,null,null,null,null,null,null,null,null,null,null,null,null,null,null,null,null,null,null,null,null,null,null,null,null,null,null,null,null,null,"MWH NZ Ltd.","MWH"]
[null,null,null,null,null,null,null,null,null,null,null,null,null,null,null,null,null,null,null,null,null,null,null,null,null,null,null,null,null,null,null,null,null,"Napier City Council","NCC"]
[null,null,null,null,null,null,null,null,null,null,null,null,null,null,null,null,null,null,null,null,null,null,null,null,null,null,null,null,null,null,null,null,null,"NZ Transport Agency - Highway Programme","NTA"]
[null,null,null,null,null,null,null,null,null,null,null,null,null,null,null,null,null,null,null,null,null,null,null,null,null,null,null,null,null,null,null,null,null,"NZ Transport Agency - Funding","NTF"]
[null,null,null,null,null,null,null,null,null,null,null,null,null,null,null,null,null,null,null,null,null,null,null,null,null,null,null,null,null,null,null,null,null,"North Power","NTH"]
[null,null,null,null,null,null,null,null,null,null,null,null,null,null,null,null,null,null,null,null,null,null,null,null,null,null,null,null,null,null,null,null,null,"Nutech Security","NUT"]
[null,null,null,null,null,null,null,null,null,null,null,null,null,null,null,null,null,null,null,null,null,null,null,null,null,null,null,null,null,null,null,null,null,"Odyssey Energy (2009) Ltd.","OE("]
[null,null,null,null,null,null,null,null,null,null,null,null,null,null,null,null,null,null,null,null,null,null,null,null,null,null,null,null,null,null,null,null,null,"Opus International Consultants Ltd (NZ)","OI2"]
[null,null,null,null,null,null,null,null,null,null,null,null,null,null,null,null,null,null,null,null,null,null,null,null,null,null,null,null,null,null,null,null,null,"Opus International Consultants Ltd.","OIC"]
[null,null,null,null,null,null,null,null,null,null,null,null,null,null,null,null,null,null,null,null,null,null,null,null,null,null,null,null,null,null,null,null,null,"Oldfields","OLD"]
[null,null,null,null,null,null,null,null,null,null,null,null,null,null,null,null,null,null,null,null,null,null,null,null,null,null,null,null,null,null,null,null,null,"Porirua City Council","PCC"]
[null,null,null,null,null,null,null,null,null,null,null,null,null,null,null,null,null,null,null,null,null,null,null,null,null,null,null,null,null,null,null,null,null,"Pinnacles Civil Group Ltd.","PCG"]
[null,null,null,null,null,null,null,null,null,null,null,null,null,null,null,null,null,null,null,null,null,null,null,null,null,null,null,null,null,null,null,null,null,"Pope Electrical Ltd","PE2"]
[null,null,null,null,null,null,null,null,null,null,null,null,null,null,null,null,null,null,null,null,null,null,null,null,null,null,null,null,null,null,null,null,null,"Pope Electrical Limited","PEL"]
[null,null,null,null,null,null,null,null,null,null,null,null,null,null,null,null,null,null,null,null,null,null,null,null,null,null,null,null,null,null,null,null,null,"Pavement Management Services","PMS"]
[null,null,null,null,null,null,null,null,null,null,null,null,null,null,null,null,null,null,null,null,null,null,null,null,null,null,null,null,null,null,null,null,null,"Power Solutions Ltd","PSL"]
[null,null,null,null,null,null,null,null,null,null,null,null,null,null,null,null,null,null,null,null,null,null,null,null,null,null,null,null,null,null,null,null,null,"Queenstown-Lakes District Council","QDC"]
[null,null,null,null,null,null,null,null,null,null,null,null,null,null,null,null,null,null,null,null,null,null,null,null,null,null,null,null,null,null,null,null,null,"Quality Roading and Services","QRS"]
[null,null,null,null,null,null,null,null,null,null,null,null,null,null,null,null,null,null,null,null,null,null,null,null,null,null,null,null,null,null,null,null,null,"Read-only access for Tenderers","RAF"]
[null,null,null,null,null,null,null,null,null,null,null,null,null,null,null,null,null,null,null,null,null,null,null,null,null,null,null,null,null,null,null,null,null,"Rangitikei District Council","RDC"]
[null,null,null,null,null,null,null,null,null,null,null,null,null,null,null,null,null,null,null,null,null,null,null,null,null,null,null,null,null,null,null,null,null,"Roadex","RDX"]
[null,null,null,null,null,null,null,null,null,null,null,null,null,null,null,null,null,null,null,null,null,null,null,null,null,null,null,null,null,null,null,null,null,"Rotorua Lakes Council","RLC"]
[null,null,null,null,null,null,null,null,null,null,null,null,null,null,null,null,null,null,null,null,null,null,null,null,null,null,null,null,null,null,null,null,null,"Roading Logistics Ltd","RLL"]
[null,null,null,null,null,null,null,null,null,null,null,null,null,null,null,null,null,null,null,null,null,null,null,null,null,null,null,null,null,null,null,null,null,"Rationale Ltd","RLT"]
[null,null,null,null,null,null,null,null,null,null,null,null,null,null,null,null,null,null,null,null,null,null,null,null,null,null,null,null,null,null,null,null,null,"Rotorua District Council","ROT"]
[null,null,null,null,null,null,null,null,null,null,null,null,null,null,null,null,null,null,null,null,null,null,null,null,null,null,null,null,null,null,null,null,null,"RAMM Software Limited","RSL"]
[null,null,null,null,null,null,null,null,null,null,null,null,null,null,null,null,null,null,null,null,null,null,null,null,null,null,null,null,null,null,null,null,null,"Road Signs & Traffic Control Equipment Limited","RTL"]
[null,null,null,null,null,null,null,null,null,null,null,null,null,null,null,null,null,null,null,null,null,null,null,null,null,null,null,null,null,null,null,null,null,"Russell Roads","RUS"]
[null,null,null,null,null,null,null,null,null,null,null,null,null,null,null,null,null,null,null,null,null,null,null,null,null,null,null,null,null,null,null,null,null,"Salient Consultants","SAL"]
[null,null,null,null,null,null,null,null,null,null,null,null,null,null,null,null,null,null,null,null,null,null,null,null,null,null,null,null,null,null,null,null,null,"Sealcoat Central Ltd.","SCL"]
[null,null,null,null,null,null,null,null,null,null,null,null,null,null,null,null,null,null,null,null,null,null,null,null,null,null,null,null,null,null,null,null,null,"Shaw's Consulting Services Ltd","SCS"]
[null,null,null,null,null,null,null,null,null,null,null,null,null,null,null,null,null,null,null,null,null,null,null,null,null,null,null,null,null,null,null,null,null,"Southland District Council","SDC"]
[null,null,null,null,null,null,null,null,null,null,null,null,null,null,null,null,null,null,null,null,null,null,null,null,null,null,null,null,null,null,null,null,null,"Signopsys Electronic Signs","SES"]
[null,null,null,null,null,null,null,null,null,null,null,null,null,null,null,null,null,null,null,null,null,null,null,null,null,null,null,null,null,null,null,null,null,"Sicon Ltd.","SL2"]
[null,null,null,null,null,null,null,null,null,null,null,null,null,null,null,null,null,null,null,null,null,null,null,null,null,null,null,null,null,null,null,null,null,"Stantec New Zealand","SN2"]
[null,null,null,null,null,null,null,null,null,null,null,null,null,null,null,null,null,null,null,null,null,null,null,null,null,null,null,null,null,null,null,null,null,"Stantec New Zealand Ltd","SNZ"]
[null,null,null,null,null,null,null,null,null,null,null,null,null,null,null,null,null,null,null,null,null,null,null,null,null,null,null,null,null,null,null,null,null,"SouthRoads Ltd.","SOU"]
[null,null,null,null,null,null,null,null,null,null,null,null,null,null,null,null,null,null,null,null,null,null,null,null,null,null,null,null,null,null,null,null,null,"Safe Roads Alliance","SRA"]
[null,null,null,null,null,null,null,null,null,null,null,null,null,null,null,null,null,null,null,null,null,null,null,null,null,null,null,null,null,null,null,null,null,"Services South East (NZ) Ltd.","SS2"]
[null,null,null,null,null,null,null,null,null,null,null,null,null,null,null,null,null,null,null,null,null,null,null,null,null,null,null,null,null,null,null,null,null,"Services South East Pty Ltd","SSE"]
[null,null,null,null,null,null,null,null,null,null,null,null,null,null,null,null,null,null,null,null,null,null,null,null,null,null,null,null,null,null,null,null,null,"Tonkin & Taylor Ltd","T&T"]
[null,null,null,null,null,null,null,null,null,null,null,null,null,null,null,null,null,null,null,null,null,null,null,null,null,null,null,null,null,null,null,null,null,"Tasman Howey","TAS"]
[null,null,null,null,null,null,null,null,null,null,null,null,null,null,null,null,null,null,null,null,null,null,null,null,null,null,null,null,null,null,null,null,null,"NZTA and WDM","TAW"]
[null,null,null,null,null,null,null,null,null,null,null,null,null,null,null,null,null,null,null,null,null,null,null,null,null,null,null,null,null,null,null,null,null,"Tauranga City Council","TC2"]
[null,null,null,null,null,null,null,null,null,null,null,null,null,null,null,null,null,null,null,null,null,null,null,null,null,null,null,null,null,null,null,null,null,"Taranaki Civil Construction","TCC"]
[null,null,null,null,null,null,null,null,null,null,null,null,null,null,null,null,null,null,null,null,null,null,null,null,null,null,null,null,null,null,null,null,null,"TC Nicholls","TCN"]
[null,null,null,null,null,null,null,null,null,null,null,null,null,null,null,null,null,null,null,null,null,null,null,null,null,null,null,null,null,null,null,null,null,"Traffic Control Systems","TCS"]
[null,null,null,null,null,null,null,null,null,null,null,null,null,null,null,null,null,null,null,null,null,null,null,null,null,null,null,null,null,null,null,null,null,"Taupo District Council","TD2"]
[null,null,null,null,null,null,null,null,null,null,null,null,null,null,null,null,null,null,null,null,null,null,null,null,null,null,null,null,null,null,null,null,null,"Tasman District Council","TDC"]
[null,null,null,null,null,null,null,null,null,null,null,null,null,null,null,null,null,null,null,null,null,null,null,null,null,null,null,null,null,null,null,null,null,"The Datastack Ltd","TDL"]
[null,null,null,null,null,null,null,null,null,null,null,null,null,null,null,null,null,null,null,null,null,null,null,null,null,null,null,null,null,null,null,null,null,"Taupo East Traffic Services Contractor","TET"]
[null,null,null,null,null,null,null,null,null,null,null,null,null,null,null,null,null,null,null,null,null,null,null,null,null,null,null,null,null,null,null,null,null,"Broadspectrum (NZ) Ltd","TFD"]
[null,null,null,null,null,null,null,null,null,null,null,null,null,null,null,null,null,null,null,null,null,null,null,null,null,null,null,null,null,null,null,null,null,"Waka Kotahi NZ Transport Agency","TNZ"]
[null,null,null,null,null,null,null,null,null,null,null,null,null,null,null,null,null,null,null,null,null,null,null,null,null,null,null,null,null,null,null,null,null,"Top Energy","TOP"]
[null,null,null,null,null,null,null,null,null,null,null,null,null,null,null,null,null,null,null,null,null,null,null,null,null,null,null,null,null,null,null,null,null,"The Roading Company","TRC"]
[null,null,null,null,null,null,null,null,null,null,null,null,null,null,null,null,null,null,null,null,null,null,null,null,null,null,null,null,null,null,null,null,null,"Transfield Services (NZ) Ltd","TS("]
[null,null,null,null,null,null,null,null,null,null,null,null,null,null,null,null,null,null,null,null,null,null,null,null,null,null,null,null,null,null,null,null,null,"Tonkin and Taylor Ltd","TT"]
[null,null,null,null,null,null,null,null,null,null,null,null,null,null,null,null,null,null,null,null,null,null,null,null,null,null,null,null,null,null,null,null,null,"Tyco Traffic and Transportation","TYC"]
[null,null,null,null,null,null,null,null,null,null,null,null,null,null,null,null,null,null,null,null,null,null,null,null,null,null,null,null,null,null,null,null,null,"Urban Connection Ltd","UCL"]
[null,null,null,null,null,null,null,null,null,null,null,null,null,null,null,null,null,null,null,null,null,null,null,null,null,null,null,null,null,null,null,null,null,"University of Canterbury","UOC"]
[null,null,null,null,null,null,null,null,null,null,null,null,null,null,null,null,null,null,null,null,null,null,null,null,null,null,null,null,null,null,null,null,null,"Ventia Pty Ltd","VPL"]
[null,null,null,null,null,null,null,null,null,null,null,null,null,null,null,null,null,null,null,null,null,null,null,null,null,null,null,null,null,null,null,null,null,"Western Bay of Plenty District Council","WBO"]
[null,null,null,null,null,null,null,null,null,null,null,null,null,null,null,null,null,null,null,null,null,null,null,null,null,null,null,null,null,null,null,null,null,"Wellington City Council","WCC"]
[null,null,null,null,null,null,null,null,null,null,null,null,null,null,null,null,null,null,null,null,null,null,null,null,null,null,null,null,null,null,null,null,null,"Waimakariri District Council","WD2"]
[null,null,null,null,null,null,null,null,null,null,null,null,null,null,null,null,null,null,null,null,null,null,null,null,null,null,null,null,null,null,null,null,null,"Whakatane District Council","WD3"]
[null,null,null,null,null,null,null,null,null,null,null,null,null,null,null,null,null,null,null,null,null,null,null,null,null,null,null,null,null,null,null,null,null,"Wairoa District Council","WD4"]
[null,null,null,null,null,null,null,null,null,null,null,null,null,null,null,null,null,null,null,null,null,null,null,null,null,null,null,null,null,null,null,null,null,"Waipa District Council","WD5"]
[null,null,null,null,null,null,null,null,null,null,null,null,null,null,null,null,null,null,null,null,null,null,null,null,null,null,null,null,null,null,null,null,null,"Waikato District Council","WD6"]
[null,null,null,null,null,null,null,null,null,null,null,null,null,null,null,null,null,null,null,null,null,null,null,null,null,null,null,null,null,null,null,null,null,"Whangarei District Council","WDC"]
[null,null,null,null,null,null,null,null,null,null,null,null,null,null,null,null,null,null,null,null,null,null,null,null,null,null,null,null,null,null,null,null,null,"WDM","WDM"]
[null,null,null,null,null,null,null,null,null,null,null,null,null,null,null,null,null,null,null,null,null,null,null,null,null,null,null,null,null,null,null,null,null,"WSP-Opus International Consultants Ltd","WIC"]
[null,null,null,null,null,null,null,null,null,null,null,null,null,null,null,null,null,null,null,null,null,null,null,null,null,null,null,null,null,null,null,null,null,"Downer New Zealand Limited","WIL"]
[null,null,null,null,null,null,null,null,null,null,null,null,null,null,null,null,null,null,null,null,null,null,null,null,null,null,null,null,null,null,null,null,null,"W J Ashton Service Ltd","WJA"]
[null,null,null,null,null,null,null,null,null,null,null,null,null,null,null,null,null,null,null,null,null,null,null,null,null,null,null,null,null,null,null,null,null,"Waka Kotahi NZ Transport Agency - Highways","WK2"]
[null,null,null,null,null,null,null,null,null,null,null,null,null,null,null,null,null,null,null,null,null,null,null,null,null,null,null,null,null,null,null,null,null,"Waka Kotahi NZ Transport Agency","WKN"]
[null,null,null,null,null,null,null,null,null,null,null,null,null,null,null,null,null,null,null,null,null,null,null,null,null,null,null,null,null,null,null,null,null,"WSP New Zealand Ltd","WNZ"]

{"sheet":"WebLookups","index":2,"n_rows":319,"n_cols":1,"rows_kept":319,"cut":false,"hidden":true,"merged":[]}
["ns1:road_name"]
["016-0000-B"]
["016-0000-D"]
["016-0000-I"]
["016-0001-R1"]
["016-0001-R2"]
["016-0002-R1"]
["016-0002-R2"]
["016-0002-R3"]
["016-0002-R4"]
["016-0003-R1"]
["016-0003-R2"]
["016-0003-R3"]
["016-0003-R4"]
["016-0004-R1"]
["016-0004-R2"]
["016-0004-R3"]
["016-0004-R4"]
["016-0006-R1"]
["016-0006-R2"]
["016-0006-R3"]
["016-0006-R4"]
["016-0007-D"]
["016-0007-I"]
["016-0007-W"]
["016-0008-R1"]
["016-0008-R2"]
["016-0008-R3"]
["016-0008-R4"]
["016-0008-R5"]
["016-0011-R1"]
["016-0011-R2"]
["016-0012-R1"]
["016-0012-R2"]
["016-0014-R1"]
["016-0014-R2"]
["016-0014-R3"]
["016-0014-R4"]
["016-0014-R5"]
["016-0016-R1"]
["016-0016-R2"]
["016-0016-R3"]
["016-0016-R4"]
["016-0016-R5"]
["016-0018-R1"]
["016-0018-R2"]
["016-0019-B"]
["016-0019-D"]
["016-0019-I"]
["016-0019-R1"]
["016-0019-R2"]
["016-0019-R3"]
["016-0019-R4"]
["016-0019-R5"]
["016-0019-R6"]
["016-0021-W"]
["016-0037-B"]
["016-0047-B"]
["016-0069-B"]
["016-0082-B"]
["016-0092-B"]
["018-0000-D"]
["018-0000-I"]
["018-0002-R1"]
["018-0002-R2"]
["018-0002-R3"]
["018-0002-R4"]
["018-0005-R1"]
["018-0005-R2"]
["018-0006-R1"]
["018-0006-R2"]
["018-0007-D"]
["018-0007-I"]
["018-0008-R1"]
["018-0008-R2"]
["018-0010-R1"]
["018-0010-R2"]
["018-0010-R3"]
["018-0010-R4"]
["018-0012-R1"]
["018-0012-R2"]
["018-0012-R3"]
["01N-0336-B"]
["01N-0346-B"]
["01N-0363-B"]
["01N-0373-B"]
["01N-0373-D"]
["01N-0373-I"]
["01N-0381-R1"]
["01N-0381-R2"]
["01N-0389-R1"]
["01N-0389-R2"]
["01N-0389-R3"]
["01N-0389-R4"]
["01N-0389-R5"]
["01N-0389-W"]
["01N-0391-R1"]
["01N-0391-R2"]
["01N-0398-D"]
["01N-0398-I"]
["01N-0398-R1"]
["01N-0398-R2"]
["01N-0398-R3"]
["01N-0398-R4"]
["01N-0398-R5"]
["01N-0402-R1"]
["01N-0402-R2"]
["01N-0410-R1"]
["01N-0410-R2"]
["01N-0410-R3"]
["01N-0410-R4"]
["01N-0410-R5"]
["01N-0410-R6"]
["01N-0411-R1"]
["01N-0412-R1"]
["01N-0412-R2"]
["01N-0412-R3"]
["01N-0412-R4"]
["01N-0414-B"]
["01N-0414-D"]
["01N-0414-I"]
["01N-0414-R1"]
["01N-0414-R2"]
["01N-0414-R3"]
["01N-0414-R4"]
["01N-0417-R1"]
["01N-0417-R2"]
["01N-0417-R3"]
["01N-0417-R4"]
["01N-0419-R1"]
["01N-0419-R2"]
["01N-0419-R3"]
["01N-0419-R4"]
["01N-0420-R1"]
["01N-0420-R2"]
["01N-0420-R3"]
["01N-0420-R4"]
["01N-0420-R5"]
["01N-0420-R7"]
["01N-0422-R2"]
["01N-0422-R3"]
["01N-0422-R4"]
["01N-0422-R5"]
["01N-0423-R1"]
["01N-0425-R1"]
["01N-0425-R2"]
["01N-0426-R1"]
["01N-0426-R2"]
["01N-0426-R3"]
["01N-0427-D"]
["01N-0427-I"]
["01N-0427-R1"]
["01N-0427-R2"]
["01N-0427-R3"]
["01N-0427-R4"]
["01N-0427-R5"]
["01N-0428-R1"]
["01N-0428-R2"]
["01N-0428-R3"]
["01N-0428-R4"]
["01N-0429-R1"]
["01N-0429-R2"]
["01N-0429-R5"]
["01N-0430-R1"]
["01N-0430-R2"]
["01N-0431-D"]
["01N-0431-I"]
["01N-0431-R1"]
["01N-0431-R2"]
["01N-0432-R1"]
["01N-0433-R1"]
["01N-0433-R2"]
["01N-0434-R1"]
["01N-0434-R2"]
["01N-0434-R3"]
["01N-0434-R4"]
["01N-0434-R5"]
["01N-0434-R6"]
["01N-0434-W"]
["01N-0435-R1"]
["01N-0435-R2"]
["01N-0436-R1"]
["01N-0436-R2"]
["01N-0436-R3"]
["01N-0436-R4"]
["01N-0436-R5"]
["01N-0436-R6"]
["01N-0436-W"]
["01N-0437-R1"]
["01N-0437-R2"]
["01N-0437-R3"]
["01N-0438-R1"]
["01N-0438-R2"]
["01N-0438-R3"]
["01N-0438-R4"]
["01N-0441-R1"]
["01N-0441-R2"]
["01N-0441-R3"]
["01N-0441-R4"]
["01N-0443-R1"]
["01N-0443-R2"]
["01N-0443-R3"]
["01N-0443-R4"]
["01N-0444-R1"]
["01N-0444-R2"]
["01N-0444-R3"]
["01N-0444-R4"]
["01N-0447-R1"]
["01N-0447-R2"]
["01N-0448-D"]
["01N-0448-I"]
["01N-0448-R1"]
["01N-0448-R2"]
["01N-0448-R3"]
["01N-0448-R4"]
["01N-0448-R5"]
["01N-0448-R6"]
["01N-0448-R7"]
["01N-0448-R8"]
["01N-0451-R1"]
["01N-0451-R2"]
["01N-0454-R1"]
["01N-0454-R2"]
["01N-0454-R3"]
["01N-0454-R4"]
["01N-0458-R1"]
["01N-0458-R2"]
["01N-0458-R3"]
["01N-0458-R4"]
["01N-0458-R5"]
["01N-0460-R1"]
["01N-0460-R2"]
["01N-0461-D"]
["01N-0461-I"]
["01N-0462-R1"]
["01N-0462-R2"]
["01N-0462-R3"]
["01N-0462-R4"]
["01N-0466-R1"]
["01N-0466-R2"]
["01N-0466-R3"]
["01N-0466-R4"]
["01N-0472-R1"]
["01N-0472-R2"]
["01N-0472-R3"]
["01N-0472-R4"]
["01N-0472-R5"]
["01N-0472-R6"]
["01N-0474-R1"]
["01N-0474-R2"]
["01N-0474-R3"]
["01N-0474-R4"]
["01N-0475-R1"]
["01N-0475-R2"]
["01N-0475-R3"]
["01N-0475-R4"]
["01N-0477-R1"]
["01N-0477-R2"]
["01N-0478-R1"]
["01N-0478-R2"]
["01N-0478-R3"]
["01N-0478-R4"]
["020-0000-D"]
["020-0000-I"]
["020-0001-R1"]
["020-0001-R2"]
["020-0001-R3"]
["020-0001-R4"]
["020-0001-R5"]
["020-0003-R1"]
["020-0003-R2"]
["020-0003-R3"]
["020-0003-R4"]
["020-0005-R1"]
["020-0005-R2"]
["020-0005-R3"]
["020-0005-R4"]
["020-0007-R1"]
["020-0007-R2"]
["020-0007-R3"]
["020-0007-R4"]
["020-0009-R1"]
["020-0010-D"]
["020-0010-I"]
["020-0010-R1"]
["020-0010-R2"]
["020-0010-R3"]
["020-0010-R4"]
["020-0012-R1"]
["020-0012-R2"]
["020-0013-R1"]
["020-0013-R2"]
["020-0013-R3"]
["020-0013-R4"]
["020-0015-R1"]
["020-0015-R2"]
["020-0016-R1"]
["020-0016-R2"]
["020-0016-R3"]
["020-0016-R4"]
["020-0018-R1"]
["020-0018-R2"]
["020-0018-R3"]
["020-0018-R4"]
["020-0019-R1"]
["020-0019-R4"]
["022-0000-B"]
["022-0000-D"]
["022-0000-I"]
["022-0001-R1"]
["20A-0000-D"]
["20A-0000-I"]
["20A-0001-R1"]
["20A-0001-R2"]
["20B-0000-B"]
["BUS-0414-B"]
["BUS-0414-R5"]
["BUS-0420-R6"]
["BUS-0422-R1"]